Department Family,Entity,Date Paid,Expense Type,Expense Area,Supplier,Transaction Number,Amount (�),Supplier VAT Registration Number
BEIS,Met Office,2020-06-03,11 SERVICES,TECHNOLOGY,AMAZON WEB SERVICES INC.,9802,411.11,N/A
BEIS,Met Office,2020-06-03,11 SERVICES,TECHNOLOGY,AMAZON WEB SERVICES INC.,9803,79433.61,N/A
BEIS,Met Office,2020-06-03,11 SERVICES,TECHNOLOGY,AMAZON WEB SERVICES INC.,9804,1254.33,N/A
BEIS,Met Office,2020-06-03,11 SERVICES,TECHNOLOGY,AMAZON WEB SERVICES INC.,9812,12066.71,N/A
BEIS,Met Office,2020-06-03,11 SERVICES,OPERATIONS,"AXYS TECHNOLOGIES, INC",9821,122.23,-
BEIS,Met Office,2020-06-03,08 SOFTWARE LICENCES,TECHNOLOGY,DMARCIAN EUROPE BV,442822,5250,NL852616879B01
BEIS,Met Office,2020-06-03,12 INTERNATIONAL,OPERATIONS,ECOMET,21465,20050.3,EXEMPT
BEIS,Met Office,2020-06-03,11 SERVICES,GOVERNMENT SERVICES,Eumetsat,21486,5230.86,VE
BEIS,Met Office,2020-06-03,11 SERVICES,GOVERNMENT SERVICES,Eumetsat,21517,5349.88,VE
BEIS,Met Office,2020-06-03,12 INTERNATIONAL,OPERATIONS,EURO-ARGO ERIC,21491,26154.28,723/2009
BEIS,Met Office,2020-06-03,11 SERVICES,OPERATIONS,"EUTELSAT MADERIA, UNIPESSOAL LDA",21492,2265.83,PT511283733
BEIS,Met Office,2020-06-03,11 SERVICES,OPERATIONS,"EUTELSAT MADERIA, UNIPESSOAL LDA",21522,2317.39,PT511283733
BEIS,Met Office,2020-06-03,11 SERVICES,STRATEGIC INVESTMENT,"IBL SOFTWARE ENGINEERING, SPOL S.R.O.",442146,10428.95,SK2020241883
BEIS,Met Office,2020-06-03,11 SERVICES,STRATEGIC INVESTMENT,"IBL SOFTWARE ENGINEERING, SPOL S.R.O.",442147,4287.04,SK2020241883
BEIS,Met Office,2020-06-03,08 SOFTWARE LICENCES,GOVERNMENT SERVICES,"IBL SOFTWARE ENGINEERING, SPOL S.R.O.",442148,3911.9,SK2020241883
BEIS,Met Office,2020-06-03,11 SERVICES,GOVERNMENT SERVICES,KENYA METEOROLOGICAL DEPARTMENT,442175,1745,-
BEIS,Met Office,2020-06-03,11 SERVICES,SCIENCE,NIWA,442621,5035.56,GST059456466
BEIS,Met Office,2020-06-03,07 EQUIPMENT,SCIENCE,OMNISYS INSTRUMENTS AB,21467,8718.09,SE556454668601
BEIS,Met Office,2020-06-04,11 SERVICES,CHIEF FINANCIAL OFFICER,ALLSTAR BUSINESS SOLUTIONS LTD,443053,222.66,747880191
BEIS,Met Office,2020-06-04,11 SERVICES,OPERATIONS,APPLIED SATELLITE TECHNOLOGY SYSTEMS LTD,442660,34.43,720108683
BEIS,Met Office,2020-06-04,11 SERVICES,OPERATIONS,APPLIED SATELLITE TECHNOLOGY SYSTEMS LTD,442664,34.43,720108683
BEIS,Met Office,2020-06-04,11 SERVICES,STRATEGIC INVESTMENT,BEAMANS LTD,443065,990,656875579
BEIS,Met Office,2020-06-04,06 ACCOMMODATION,CHIEF FINANCIAL OFFICER,Biffa Waste Services Ltd,442812,177.11,537911627
BEIS,Met Office,2020-06-04,06 ACCOMMODATION,CHIEF FINANCIAL OFFICER,Biffa Waste Services Ltd,442813,643.55,537911627
BEIS,Met Office,2020-06-04,06 ACCOMMODATION,CHIEF FINANCIAL OFFICER,Biffa Waste Services Ltd,442815,61.1,537911627
BEIS,Met Office,2020-06-04,06 ACCOMMODATION,CHIEF FINANCIAL OFFICER,Biffa Waste Services Ltd,442816,146.95,537911627
BEIS,Met Office,2020-06-04,06 ACCOMMODATION,CHIEF FINANCIAL OFFICER,Biffa Waste Services Ltd,442817,378.04,537911627
BEIS,Met Office,2020-06-04,06 ACCOMMODATION,CHIEF FINANCIAL OFFICER,Biffa Waste Services Ltd,442819,620.02,537911627
BEIS,Met Office,2020-06-04,11 SERVICES,OPERATIONS,BOC LTD,442966,8018.76,226556555
BEIS,Met Office,2020-06-04,11 SERVICES,STRATEGIC INVESTMENT,CACI LTD,441758,33606,380609841
BEIS,Met Office,2020-06-04,11 SERVICES,STRATEGIC INVESTMENT,CACI LTD,442964,53040,380609841
BEIS,Met Office,2020-06-04,11 SERVICES,GOVERNMENT SERVICES,CACI LTD,442988,1413.75,380609841
BEIS,Met Office,2020-06-04,11 SERVICES,GOVERNMENT SERVICES,CACI LTD,442988,4668.75,380609841
BEIS,Met Office,2020-06-04,11 SERVICES,GOVERNMENT SERVICES,CACI LTD,442988,23870.05,380609841
BEIS,Met Office,2020-06-04,06 ACCOMMODATION,CHIEF FINANCIAL OFFICER,CARDIFF EXECUTIVE CENTRE LTD,442981,2470,864497378
BEIS,Met Office,2020-06-04,11 SERVICES,OPERATIONS,CATALYST IT,443032,1301.87,978169262
BEIS,Met Office,2020-06-04,11 SERVICES,GOVERNMENT SERVICES,Cgi It Uk Limited,442827,180460.25,232615194
BEIS,Met Office,2020-06-04,11 SERVICES,TECHNOLOGY,CLOUDREACH EUROPE LIMITED,442839,10422.7,978187168
BEIS,Met Office,2020-06-04,11 SERVICES,TECHNOLOGY,CLOUDREACH EUROPE LIMITED,442984,7110,978187168
BEIS,Met Office,2020-06-04,06 ACCOMMODATION,CHIEF FINANCIAL OFFICER,Comhairle Nan Eilean Siar,442803,3430.22,267799485
BEIS,Met Office,2020-06-04,08 SOFTWARE LICENCES,TECHNOLOGY,COMPUTACENTER (UK) LTD,442848,12122,490334648
BEIS,Met Office,2020-06-04,08 SOFTWARE LICENCES,TECHNOLOGY,COMPUTACENTER (UK) LTD,442848,2424.4,490334648
BEIS,Met Office,2020-06-04,08 SOFTWARE LICENCES,TECHNOLOGY,COMPUTACENTER (UK) LTD,442848,2369.4,490334648
BEIS,Met Office,2020-06-04,08 SOFTWARE LICENCES,TECHNOLOGY,COMPUTACENTER (UK) LTD,442848,26552.16,490334648
BEIS,Met Office,2020-06-04,08 SOFTWARE LICENCES,TECHNOLOGY,COMPUTACENTER (UK) LTD,442848,4408.88,490334648
BEIS,Met Office,2020-06-04,08 SOFTWARE LICENCES,TECHNOLOGY,COMPUTACENTER (UK) LTD,442850,1081.8,490334648
BEIS,Met Office,2020-06-04,08 SOFTWARE LICENCES,TECHNOLOGY,COMPUTACENTER (UK) LTD,442851,8428.96,490334648
BEIS,Met Office,2020-06-04,INFORMATION TECHNOLOGY,TECHNOLOGY,COMPUTACENTER (UK) LTD,442853,59097.37,490334648
BEIS,Met Office,2020-06-04,INFORMATION TECHNOLOGY,TECHNOLOGY,COMPUTACENTER (UK) LTD,442909,250804.69,490334648
BEIS,Met Office,2020-06-04,INFORMATION TECHNOLOGY,TECHNOLOGY,COMPUTACENTER (UK) LTD,442909,86722.03,490334648
BEIS,Met Office,2020-06-04,INFORMATION TECHNOLOGY,TECHNOLOGY,COMPUTACENTER (UK) LTD,442909,137162.34,490334648
BEIS,Met Office,2020-06-04,11 SERVICES,CHIEF FINANCIAL OFFICER,DIGITAL COMMUNICATIONS SYSTEMS LIMITED,443023,5388.75,GB 556 1971 19
BEIS,Met Office,2020-06-04,13 MISCELLANEOUS,CHIEF FINANCIAL OFFICER,EDEN SPRINGS UK LTD,442901,86.8,232160411
BEIS,Met Office,2020-06-04,13 MISCELLANEOUS,CHIEF FINANCIAL OFFICER,EDEN SPRINGS UK LTD,442902,368.08,232160411
BEIS,Met Office,2020-06-04,13 MISCELLANEOUS,CHIEF FINANCIAL OFFICER,EDEN SPRINGS UK LTD,442903,122.4,232160411
BEIS,Met Office,2020-06-04,13 MISCELLANEOUS,CHIEF FINANCIAL OFFICER,EDEN SPRINGS UK LTD,442904,500.88,232160411
BEIS,Met Office,2020-06-04,13 MISCELLANEOUS,CHIEF FINANCIAL OFFICER,EDEN SPRINGS UK LTD,442905,120,232160411
BEIS,Met Office,2020-06-04,13 MISCELLANEOUS,CHIEF FINANCIAL OFFICER,EDEN SPRINGS UK LTD,442906,259.72,232160411
BEIS,Met Office,2020-06-04,13 MISCELLANEOUS,CHIEF FINANCIAL OFFICER,EDEN SPRINGS UK LTD,442907,54.8,232160411
BEIS,Met Office,2020-06-04,11 SERVICES,STRATEGIC INVESTMENT,ELASTICSEARCH LTD,440980,1190.78,155790484
BEIS,Met Office,2020-06-04,11 SERVICES,STRATEGIC INVESTMENT,ELASTICSEARCH LTD,442050,1474.57,155790484
BEIS,Met Office,2020-06-04,03 STAFF COSTS T&S,CHIEF FINANCIAL OFFICER,ENTERPRISE RENT A CAR UK LTD,442831,91.41,215557314
BEIS,Met Office,2020-06-04,03 STAFF COSTS T&S,CHIEF FINANCIAL OFFICER,ENTERPRISE RENT A CAR UK LTD,442832,1086.4,215557314
BEIS,Met Office,2020-06-04,11 SERVICES,CORPORATE,EQUINITI ICS LTD,443047,6846,915967778
BEIS,Met Office,2020-06-04,11 SERVICES,CORPORATE,EQUINITI ICS LTD,443048,316.66,915967778
BEIS,Met Office,2020-06-04,06 ACCOMMODATION,CHIEF FINANCIAL OFFICER,Exeter City Council,440191,140288,142335594
BEIS,Met Office,2020-06-04,04 CONTRACTORS,TECHNOLOGY,FDM GROUP LIMITED,441239,4050,583540529
BEIS,Met Office,2020-06-04,08 SOFTWARE LICENCES,TECHNOLOGY,GOOGLE IRELAND LTD,443036,36.44,6388047V
BEIS,Met Office,2020-06-04,11 SERVICES,CORPORATE,HAWK INCENTIVES LTD,442150,47013.75,238839422
BEIS,Met Office,2020-06-04,11 SERVICES,CORPORATE,HAWK INCENTIVES LTD,442441,53376.75,238839422
BEIS,Met Office,2020-06-04,04 CONTRACTORS,STRATEGIC INVESTMENT,HAYS SPECIALIST RECRUITMENT LTD,442808,528.5,773695871
BEIS,Met Office,2020-06-04,04 CONTRACTORS,STRATEGIC INVESTMENT,HAYS SPECIALIST RECRUITMENT LTD,442810,528.5,773695871
BEIS,Met Office,2020-06-04,04 CONTRACTORS,TECHNOLOGY,HAYS SPECIALIST RECRUITMENT LTD,442811,513.4,773695871
BEIS,Met Office,2020-06-04,04 CONTRACTORS,CORPORATE,HAYS SPECIALIST RECRUITMENT LTD,442971,658.25,773695871
BEIS,Met Office,2020-06-04,10 EQUIPMENT MAINTENANCE,TECHNOLOGY,Hewlett Packard Ltd,442939,2599.29,314149679
BEIS,Met Office,2020-06-04,10 EQUIPMENT MAINTENANCE,TECHNOLOGY,Hewlett Packard Ltd,442940,1882.8,314149679
BEIS,Met Office,2020-06-04,10 EQUIPMENT MAINTENANCE,TECHNOLOGY,Hewlett Packard Ltd,442941,1599.6,314149679
BEIS,Met Office,2020-06-04,11 SERVICES,TECHNOLOGY,HUT 6 SECURITY LIMITED,442799,16750,277 2052 03
BEIS,Met Office,2020-06-04,11 SERVICES,BUSINESS GROUP,JCT Ltd,442802,1992,714 3761 44
BEIS,Met Office,2020-06-04,11 SERVICES,GOVERNMENT SERVICES,JEREMY BENN ASSOCIATES LIMITED,442845,25000,GB 665300941
BEIS,Met Office,2020-06-04,04 CONTRACTORS,GOVERNMENT SERVICES,JOBSEEKERS RECRUITMENT SERVICES LTD,442653,848.04,130 1297 14
BEIS,Met Office,2020-06-04,04 CONTRACTORS,GOVERNMENT SERVICES,JOBSEEKERS RECRUITMENT SERVICES LTD,442835,1039.88,130 1297 14
BEIS,Met Office,2020-06-04,04 CONTRACTORS,GOVERNMENT SERVICES,JOBSEEKERS RECRUITMENT SERVICES LTD,442836,870.96,130 1297 14
BEIS,Met Office,2020-06-04,04 CONTRACTORS,GOVERNMENT SERVICES,JOBSEEKERS RECRUITMENT SERVICES LTD,442855,848.04,130 1297 14
BEIS,Met Office,2020-06-04,04 CONTRACTORS,OPERATIONS,JOBSEEKERS RECRUITMENT SERVICES LTD,442856,519.86,130 1297 14
BEIS,Met Office,2020-06-04,04 CONTRACTORS,GOVERNMENT SERVICES,JOBSEEKERS RECRUITMENT SERVICES LTD,443017,520.26,130 1297 14
BEIS,Met Office,2020-06-04,04 CONTRACTORS,GOVERNMENT SERVICES,JOBSEEKERS RECRUITMENT SERVICES LTD,443018,529.23,130 1297 14
BEIS,Met Office,2020-06-04,04 CONTRACTORS,GOVERNMENT SERVICES,JOBSEEKERS RECRUITMENT SERVICES LTD,443019,676.14,130 1297 14
BEIS,Met Office,2020-06-04,04 CONTRACTORS,GOVERNMENT SERVICES,JOBSEEKERS RECRUITMENT SERVICES LTD,443022,716.25,130 1297 14
BEIS,Met Office,2020-06-04,04 CONTRACTORS,GOVERNMENT SERVICES,JOBSEEKERS RECRUITMENT SERVICES LTD,443024,845.77,130 1297 14
BEIS,Met Office,2020-06-04,04 CONTRACTORS,OPERATIONS,JOBSEEKERS RECRUITMENT SERVICES LTD,443025,187.3,130 1297 14
BEIS,Met Office,2020-06-04,11 SERVICES,CORPORATE,Landmark Information Group Ltd,442410,41684.5,634509735
BEIS,Met Office,2020-06-04,11 SERVICES,CORPORATE,Landmark Information Group Ltd,442938,71735.81,634509735
BEIS,Met Office,2020-06-04,11 SERVICES,CORPORATE,LUMESSE LTD,442824,18403.2,115096236
BEIS,Met Office,2020-06-04,11 SERVICES,CHIEF FINANCIAL OFFICER,MAWASEM LTD,442571,6201.81,197694731
BEIS,Met Office,2020-06-04,06 ACCOMMODATION,CHIEF FINANCIAL OFFICER,MORAY COUNCIL,442798,1568.1,663755506
BEIS,Met Office,2020-06-04,11 SERVICES,CHIEF FINANCIAL OFFICER,Morton Fraser LLP,441342,192,269129336
BEIS,Met Office,2020-06-04,06 ACCOMMODATION,CHIEF FINANCIAL OFFICER,NATS (EN ROUTE) PLC,442801,6300.49,440379456004
BEIS,Met Office,2020-06-04,06 ACCOMMODATION,CHIEF FINANCIAL OFFICER,NESS ENGINEERING LTD,442825,635.28,430188472
BEIS,Met Office,2020-06-04,11 SERVICES,BUSINESS GROUP,OSBORNE CLARKE LLP,442930,2000,GB138187353
BEIS,Met Office,2020-06-04,04 CONTRACTORS,TECHNOLOGY,OUTSOURCE UK LIMITED,442990,1800,576118722
BEIS,Met Office,2020-06-04,04 CONTRACTORS,TECHNOLOGY,OUTSOURCE UK LIMITED,442991,2473.1,576118722
BEIS,Met Office,2020-06-04,04 CONTRACTORS,BUSINESS GROUP,OUTSOURCE UK LIMITED,442992,2150.55,576118722
BEIS,Met Office,2020-06-04,04 CONTRACTORS,CORPORATE,OUTSOURCE UK LIMITED,442993,1750,576118722
BEIS,Met Office,2020-06-04,04 CONTRACTORS,CHIEF FINANCIAL OFFICER,OUTSOURCE UK LIMITED,442994,2835.05,576118722
BEIS,Met Office,2020-06-04,04 CONTRACTORS,TECHNOLOGY,OUTSOURCE UK LIMITED,442995,2025,576118722
BEIS,Met Office,2020-06-04,04 CONTRACTORS,TECHNOLOGY,OUTSOURCE UK LIMITED,442996,2715.05,576118722
BEIS,Met Office,2020-06-04,04 CONTRACTORS,STRATEGIC INVESTMENT,OUTSOURCE UK LIMITED,442997,1739.15,576118722
BEIS,Met Office,2020-06-04,04 CONTRACTORS,TECHNOLOGY,OUTSOURCE UK LIMITED,442998,2051.3,576118722
BEIS,Met Office,2020-06-04,04 CONTRACTORS,CHIEF FINANCIAL OFFICER,OUTSOURCE UK LIMITED,442999,1739.15,576118722
BEIS,Met Office,2020-06-04,04 CONTRACTORS,TECHNOLOGY,OUTSOURCE UK LIMITED,443000,2989.15,576118722
BEIS,Met Office,2020-06-04,04 CONTRACTORS,TECHNOLOGY,OUTSOURCE UK LIMITED,443001,2010.24,576118722
BEIS,Met Office,2020-06-04,04 CONTRACTORS,OPERATIONS,OUTSOURCE UK LIMITED,443002,2375,576118722
BEIS,Met Office,2020-06-04,04 CONTRACTORS,CHIEF FINANCIAL OFFICER,OUTSOURCE UK LIMITED,443003,2176.32,576118722
BEIS,Met Office,2020-06-04,04 CONTRACTORS,STRATEGIC INVESTMENT,OUTSOURCE UK LIMITED,443004,2123.1,576118722
BEIS,Met Office,2020-06-04,04 CONTRACTORS,TECHNOLOGY,OUTSOURCE UK LIMITED,443005,1350,576118722
BEIS,Met Office,2020-06-04,04 CONTRACTORS,CHIEF FINANCIAL OFFICER,OUTSOURCE UK LIMITED,443006,1652.19,576118722
BEIS,Met Office,2020-06-04,04 CONTRACTORS,TECHNOLOGY,OUTSOURCE UK LIMITED,443007,2875,576118722
BEIS,Met Office,2020-06-04,04 CONTRACTORS,STRATEGIC INVESTMENT,OUTSOURCE UK LIMITED,443008,2500,576118722
BEIS,Met Office,2020-06-04,13 MISCELLANEOUS,CHIEF FINANCIAL OFFICER,POSTURITE (UK) LTD,442805,77.22,583565114
BEIS,Met Office,2020-06-04,13 MISCELLANEOUS,CHIEF FINANCIAL OFFICER,POSTURITE (UK) LTD,442843,63.23,583565114
BEIS,Met Office,2020-06-04,13 MISCELLANEOUS,CHIEF FINANCIAL OFFICER,POSTURITE (UK) LTD,443060,170.47,583565114
BEIS,Met Office,2020-06-04,04 CONTRACTORS,STRATEGIC INVESTMENT,QUALSERV CONSULTING LTD,442953,7410.3,719067718
BEIS,Met Office,2020-06-04,04 CONTRACTORS,TECHNOLOGY,QUALSERV CONSULTING LTD,442954,3150,719067718
BEIS,Met Office,2020-06-04,04 CONTRACTORS,TECHNOLOGY,QUALSERV CONSULTING LTD,442969,11830.05,719067718
BEIS,Met Office,2020-06-04,04 CONTRACTORS,TECHNOLOGY,QUALSERV CONSULTING LTD,442970,7780.9,719067718
BEIS,Met Office,2020-06-04,11 SERVICES,CHIEF FINANCIAL OFFICER,REDACTED PERSONAL DATA,442806,417.2,729159704
BEIS,Met Office,2020-06-04,11 SERVICES,CORPORATE,REDACTED PERSONAL DATA,443033,2205,143043312
BEIS,Met Office,2020-06-04,04 CONTRACTORS,STRATEGIC INVESTMENT,REED,442910,7600,835515525
BEIS,Met Office,2020-06-04,04 CONTRACTORS,TECHNOLOGY,REED,442910,12340.56,835515525
BEIS,Met Office,2020-06-04,04 CONTRACTORS,TECHNOLOGY,REED,442910,8542.34,835515525
BEIS,Met Office,2020-06-04,04 CONTRACTORS,TECHNOLOGY,REED,442910,8038.8,835515525
BEIS,Met Office,2020-06-04,11 SERVICES,STRATEGIC INVESTMENT,ROWE IT LTD,442968,13500,924964394
BEIS,Met Office,2020-06-04,11 SERVICES,OPERATIONS,ROWE IT LTD,442982,42437.5,924964394
BEIS,Met Office,2020-06-04,11 SERVICES,STRATEGIC INVESTMENT,ROWE IT LTD,442983,78200,924964394
BEIS,Met Office,2020-06-04,11 SERVICES,GOVERNMENT SERVICES,ROWE IT LTD,442987,1575,924964394
BEIS,Met Office,2020-06-04,11 SERVICES,OPERATIONS,ROWE IT LTD,443028,32572.5,924964394
BEIS,Met Office,2020-06-04,11 SERVICES,OPERATIONS,ROWE IT LTD,443030,20200,924964394
BEIS,Met Office,2020-06-04,11 SERVICES,BUSINESS GROUP,SPOKE (INTERACTIVE) LTD,442761,700,840156451
BEIS,Met Office,2020-06-04,06 ACCOMMODATION,CHIEF FINANCIAL OFFICER,ST MODWEN VENTURES LTD,442834,862.5,975081008
BEIS,Met Office,2020-06-04,PLANT AND EQUIPMENT,CHIEF FINANCIAL OFFICER,Stewart Morris Partnership Ltd,443097,230,687720886
BEIS,Met Office,2020-06-04,PLANT AND EQUIPMENT,CHIEF FINANCIAL OFFICER,Stewart Morris Partnership Ltd,443098,816.5,687720886
BEIS,Met Office,2020-06-04,12 INTERNATIONAL,OPERATIONS,TRIPOS CONSULTANTS,443020,1391.74,610652671
BEIS,Met Office,2020-06-04,11 SERVICES,GOVERNMENT SERVICES,UK CENTRE FOR ECOLOGY & HYDROLOGY (UKCEH),442818,15000,336940192
BEIS,Met Office,2020-06-04,11 SERVICES,GOVERNMENT SERVICES,UK CENTRE FOR ECOLOGY & HYDROLOGY (UKCEH),442911,4900,336940192
BEIS,Met Office,2020-06-04,11 SERVICES,TECHNOLOGY,UKCLOUD LTD,443015,1696.29,172647982
BEIS,Met Office,2020-06-04,11 SERVICES,TECHNOLOGY,UKCLOUD LTD,443016,1632.58,172647982
BEIS,Met Office,2020-06-04,11 SERVICES,GOVERNMENT SERVICES,ULTRA ELECTRONICS LTD NUCLEAR CONTROL SYSTEMS,442826,6303.79,123340754
BEIS,Met Office,2020-06-04,11 SERVICES,OPERATIONS,University Of Nottingham,442963,25057.42,690391225
BEIS,Met Office,2020-06-04,11 SERVICES,GOVERNMENT SERVICES,University Of Reading,442828,19350,200012659
BEIS,Met Office,2020-06-04,04 CONTRACTORS,TECHNOLOGY,WA CONSULTANTS LTD,442926,2043.1,876328977
BEIS,Met Office,2020-06-04,04 CONTRACTORS,TECHNOLOGY,WA CONSULTANTS LTD,442927,10516.51,876328977
BEIS,Met Office,2020-06-04,04 CONTRACTORS,TECHNOLOGY,WA CONSULTANTS LTD,442928,8727.45,876328977
BEIS,Met Office,2020-06-04,04 CONTRACTORS,TECHNOLOGY,WA CONSULTANTS LTD,442929,3268.96,876328977
BEIS,Met Office,2020-06-04,04 CONTRACTORS,TECHNOLOGY,WA CONSULTANTS LTD,442952,10232.07,876328977
BEIS,Met Office,2020-06-04,04 CONTRACTORS,TECHNOLOGY,WA CONSULTANTS LTD,442973,9265,876328977
BEIS,Met Office,2020-06-04,04 CONTRACTORS,TECHNOLOGY,WA CONSULTANTS LTD,442976,11700,876328977
BEIS,Met Office,2020-06-04,04 CONTRACTORS,TECHNOLOGY,WA CONSULTANTS LTD,442977,13074.58,876328977
BEIS,Met Office,2020-06-04,04 CONTRACTORS,STRATEGIC INVESTMENT,WA CONSULTANTS LTD,442980,13500,876328977
BEIS,Met Office,2020-06-04,11 SERVICES,TECHNOLOGY,WIREFAST LTD,443034,3171.05,749536001
BEIS,Met Office,2020-06-04,11 SERVICES,CORPORATE,YOUGOV PLC,442846,12700,991228109
BEIS,Met Office,2020-06-04,08 SOFTWARE LICENCES,TECHNOLOGY,ZOHO CORPORATION B.V.,442844,4194,NL855264263B01
BEIS,Met Office,2020-06-05,11 SERVICES,OPERATIONS,A R NEWPORT TRANSPORT,442931,1250,GB 132 6146 95
BEIS,Met Office,2020-06-05,06 ACCOMMODATION,CHIEF FINANCIAL OFFICER,CABINET OFFICE - COF LEAD ACCOUNT,442908,12880,-
BEIS,Met Office,2020-06-05,11 SERVICES,GOVERNMENT SERVICES,DBS FINANCE RECEIPTS CTS,441999,12654.13,888805068
BEIS,Met Office,2020-06-05,13 MISCELLANEOUS,OPERATIONS,DBS FINANCE RECEIPTS CTS,442841,30,888805068
BEIS,Met Office,2020-06-05,11 SERVICES,GOVERNMENT SERVICES,FCO,442842,4338.78,888813560
BEIS,Met Office,2020-06-10,11 SERVICES,OPERATIONS,COLLECTE LOCALISATION SATELLITES (C.L.S.),21488,224.06,FR95338034390
BEIS,Met Office,2020-06-10,11 SERVICES,OPERATIONS,COLLECTE LOCALISATION SATELLITES (C.L.S.),21489,6810.57,FR95338034390
BEIS,Met Office,2020-06-10,11 SERVICES,OPERATIONS,COLLECTE LOCALISATION SATELLITES (C.L.S.),21490,52.31,FR95338034390
BEIS,Met Office,2020-06-10,11 SERVICES,CHIEF FINANCIAL OFFICER,EIR,21441,53.13,4736919B
BEIS,Met Office,2020-06-10,11 SERVICES,CHIEF FINANCIAL OFFICER,EIR,21519,54.36,4736919B
BEIS,Met Office,2020-06-10,11 SERVICES,OPERATIONS,"EUTELSAT, S.A.",21500,3921.84,-
BEIS,Met Office,2020-06-10,11 SERVICES,OPERATIONS,"EUTELSAT, S.A.",21501,3044.1,-
BEIS,Met Office,2020-06-10,11 SERVICES,GOVERNMENT SERVICES,IGAD CLIMATE PREDICTION & APPLICATIONS CNTR,442613,105841.43,-
BEIS,Met Office,2020-06-10,11 SERVICES,GOVERNMENT SERVICES,UKRI,21498,53260.17,GB287461957
BEIS,Met Office,2020-06-11,06 ACCOMMODATION,CHIEF FINANCIAL OFFICER,REDACTED PERSONAL DATA,443263,1940,N/A
BEIS,Met Office,2020-06-11,11 SERVICES,GOVERNMENT SERVICES,ADOPSTAR,443071,1250,115036848
BEIS,Met Office,2020-06-11,03 STAFF COSTS T&S,OPERATIONS,AIRPORT CAR RENTALS LTD,443279,320,-
BEIS,Met Office,2020-06-11,11 SERVICES,CHIEF FINANCIAL OFFICER,ALPHABET (GB) LTD,443258,180.63,572417244
BEIS,Met Office,2020-06-11,11 SERVICES,CHIEF FINANCIAL OFFICER,ALPHABET (GB) LTD,443259,189.8,572417244
BEIS,Met Office,2020-06-11,13 MISCELLANEOUS,CHIEF FINANCIAL OFFICER,ARTHUR J. GALLAGHER INSURANCE BROKERS LIMITED,443316,265,GB484746209
BEIS,Met Office,2020-06-11,11 SERVICES,SUPERCOMPUTING,Arup,443087,4472,524461265
BEIS,Met Office,2020-06-11,06 ACCOMMODATION,CHIEF FINANCIAL OFFICER,Biffa Waste Services Ltd,442942,618.07,537911627
BEIS,Met Office,2020-06-11,06 ACCOMMODATION,CHIEF FINANCIAL OFFICER,Biffa Waste Services Ltd,442946,262.47,537911627
BEIS,Met Office,2020-06-11,11 SERVICES,CHIEF FINANCIAL OFFICER,BT PLC,442986,15383.71,245719348
BEIS,Met Office,2020-06-11,11 SERVICES,CHIEF FINANCIAL OFFICER,BT PLC,443322,3538.85,245719348
BEIS,Met Office,2020-06-11,11 SERVICES,BUSINESS GROUP,CACI LTD,443308,10679.25,380609841
BEIS,Met Office,2020-06-11,06 ACCOMMODATION,CHIEF FINANCIAL OFFICER,CARDIFF EXECUTIVE CENTRE LTD,443157,2470,864497378
BEIS,Met Office,2020-06-11,03 STAFF COSTS T&S,OPERATIONS,CARTUS FINANCING LTD,443352,80.73,768489458
BEIS,Met Office,2020-06-11,03 STAFF COSTS T&S,OPERATIONS,CARTUS LTD,442449,323.5,768489458
BEIS,Met Office,2020-06-11,08 SOFTWARE LICENCES,CHIEF FINANCIAL OFFICER,CEMAR,443368,240,915042161
BEIS,Met Office,2020-06-11,03 STAFF COSTS T&S,OPERATIONS,CHARLIE'S TRAVEL LTD,443051,653.9,783848277
BEIS,Met Office,2020-06-11,03 STAFF COSTS T&S,OPERATIONS,CHARLIE'S TRAVEL LTD,443051,1746.6,783848277
BEIS,Met Office,2020-06-11,06 ACCOMMODATION,CHIEF FINANCIAL OFFICER,CISTERMISER LTD,443374,222,834842121
BEIS,Met Office,2020-06-11,05 CONSULTANTS,STRATEGIC INVESTMENT,CMC PARTNERSHIP CONSULTANCY LTD,442972,9490,305803330
BEIS,Met Office,2020-06-11,05 CONSULTANTS,STRATEGIC INVESTMENT,CMC PARTNERSHIP CONSULTANCY LTD,443276,17955,305803330
BEIS,Met Office,2020-06-11,INFORMATION TECHNOLOGY,TECHNOLOGY,COMPUTACENTER (UK) LTD,442807,637.6,490334648
BEIS,Met Office,2020-06-11,CYCLESCHEME,OTHER,CYCLESCHEME LTD,443395,699.16,850403556
BEIS,Met Office,2020-06-11,CYCLESCHEME,OTHER,CYCLESCHEME LTD,443396,749.17,850403556
BEIS,Met Office,2020-06-11,CYCLESCHEME,OTHER,CYCLESCHEME LTD,443397,739.98,850403556
BEIS,Met Office,2020-06-11,CYCLESCHEME,OTHER,CYCLESCHEME LTD,443398,833.33,850403556
BEIS,Met Office,2020-06-11,06 ACCOMMODATION,CHIEF FINANCIAL OFFICER,D&G OFFICE SERVICES LTD,443362,284.38,272997547
BEIS,Met Office,2020-06-11,05 CONSULTANTS,GOVERNMENT SERVICES,DOD'S PARLIAMENTARY COMMUNICATIONS LTD,443151,6188.88,792067900
BEIS,Met Office,2020-06-11,13 MISCELLANEOUS,CHIEF FINANCIAL OFFICER,EAST ANGLIAN WATER COOLER CO,443064,73.5,676668178
BEIS,Met Office,2020-06-11,06 ACCOMMODATION,CHIEF FINANCIAL OFFICER,EDF ENERGY CUSTOMERS PLC,442945,-117189.7,523041202
BEIS,Met Office,2020-06-11,06 ACCOMMODATION,CHIEF FINANCIAL OFFICER,EDF ENERGY CUSTOMERS PLC,442947,-135373.53,523041202
BEIS,Met Office,2020-06-11,06 ACCOMMODATION,CHIEF FINANCIAL OFFICER,EDF ENERGY CUSTOMERS PLC,442985,117174.45,523041202
BEIS,Met Office,2020-06-11,06 ACCOMMODATION,CHIEF FINANCIAL OFFICER,EDF ENERGY CUSTOMERS PLC,443278,364080.82,523041202
BEIS,Met Office,2020-06-11,11 SERVICES,STRATEGIC INVESTMENT,ELASTICSEARCH LTD,442965,2361.89,155790484
BEIS,Met Office,2020-06-11,03 STAFF COSTS T&S,CHIEF FINANCIAL OFFICER,ENTERPRISE RENT A CAR UK LTD,443066,33.97,215557314
BEIS,Met Office,2020-06-11,11 SERVICES,CHIEF FINANCIAL OFFICER,EXPONENTIAL-E,443014,5620,GB798572653
BEIS,Met Office,2020-06-11,04 CONTRACTORS,TECHNOLOGY,FDM GROUP LIMITED,443256,4590,583540529
BEIS,Met Office,2020-06-11,04 CONTRACTORS,TECHNOLOGY,FDM GROUP LIMITED,443257,4860,583540529
BEIS,Met Office,2020-06-11,04 CONTRACTORS,TECHNOLOGY,FDM GROUP LIMITED,443260,5130,583540529
BEIS,Met Office,2020-06-11,04 CONTRACTORS,TECHNOLOGY,FDM GROUP LIMITED,443261,4050,583540529
BEIS,Met Office,2020-06-11,04 CONTRACTORS,TECHNOLOGY,FDM GROUP LIMITED,443262,5130,583540529
BEIS,Met Office,2020-06-11,11 SERVICES,CHIEF FINANCIAL OFFICER,GB GROUP PLC,443307,565.57,539716218
BEIS,Met Office,2020-06-11,06 ACCOMMODATION,CHIEF FINANCIAL OFFICER,GBC LTD,443052,162.24,859903672
BEIS,Met Office,2020-06-11,06 ACCOMMODATION,CHIEF FINANCIAL OFFICER,GBC LTD,443052,184.8,859903672
BEIS,Met Office,2020-06-11,11 SERVICES,CHIEF FINANCIAL OFFICER,HARPER MACLEOD LLP,443295,148.8,762130557
BEIS,Met Office,2020-06-11,11 SERVICES,CORPORATE,HAWK INCENTIVES LTD,443318,6195,238839422
BEIS,Met Office,2020-06-11,04 CONTRACTORS,GOVERNMENT SERVICES,HAYS SPECIALIST RECRUITMENT LTD,443067,183.08,773695871
BEIS,Met Office,2020-06-11,04 CONTRACTORS,BUSINESS GROUP,HAYS SPECIALIST RECRUITMENT LTD,443088,341.75,773695871
BEIS,Met Office,2020-06-11,04 CONTRACTORS,BUSINESS GROUP,HAYS SPECIALIST RECRUITMENT LTD,443089,732.32,773695871
BEIS,Met Office,2020-06-11,04 CONTRACTORS,BUSINESS GROUP,HAYS SPECIALIST RECRUITMENT LTD,443090,488.21,773695871
BEIS,Met Office,2020-06-11,04 CONTRACTORS,GOVERNMENT SERVICES,HAYS SPECIALIST RECRUITMENT LTD,443300,366.16,773695871
BEIS,Met Office,2020-06-11,04 CONTRACTORS,TECHNOLOGY,HAYS SPECIALIST RECRUITMENT LTD,443301,483.2,773695871
BEIS,Met Office,2020-06-11,04 CONTRACTORS,BUSINESS GROUP,HAYS SPECIALIST RECRUITMENT LTD,443302,732.32,773695871
BEIS,Met Office,2020-06-11,04 CONTRACTORS,GOVERNMENT SERVICES,HAYS SPECIALIST RECRUITMENT LTD,443303,183.08,773695871
BEIS,Met Office,2020-06-11,04 CONTRACTORS,STRATEGIC INVESTMENT,HAYS SPECIALIST RECRUITMENT LTD,443304,339.75,773695871
BEIS,Met Office,2020-06-11,04 CONTRACTORS,CORPORATE,HAYS SPECIALIST RECRUITMENT LTD,443305,524.82,773695871
BEIS,Met Office,2020-06-11,13 MISCELLANEOUS,CORPORATE,HEALTH MANAGEMENT LTD,443320,5940.26,792250621
BEIS,Met Office,2020-06-11,11 SERVICES,SUPERCOMPUTING,HOGAN LOVELLS INTERNATIONAL LLP,443325,26108.32,GB123371543
BEIS,Met Office,2020-06-11,11 SERVICES,SUPERCOMPUTING,HOGAN LOVELLS INTERNATIONAL LLP,443329,46494.73,GB123371543
BEIS,Met Office,2020-06-11,11 SERVICES,SUPERCOMPUTING,HOGAN LOVELLS INTERNATIONAL LLP,443330,15972,GB123371543
BEIS,Met Office,2020-06-11,11 SERVICES,SUPERCOMPUTING,HOGAN LOVELLS INTERNATIONAL LLP,443331,58340.71,GB123371543
BEIS,Met Office,2020-06-11,11 SERVICES,SUPERCOMPUTING,HOGAN LOVELLS INTERNATIONAL LLP,443339,7350.5,GB123371543
BEIS,Met Office,2020-06-11,11 SERVICES,SUPERCOMPUTING,HOGAN LOVELLS INTERNATIONAL LLP,443341,9738,GB123371543
BEIS,Met Office,2020-06-11,11 SERVICES,SUPERCOMPUTING,HOGAN LOVELLS INTERNATIONAL LLP,443342,18632.55,GB123371543
BEIS,Met Office,2020-06-11,11 SERVICES,SUPERCOMPUTING,HOGAN LOVELLS INTERNATIONAL LLP,443349,26258.11,GB123371543
BEIS,Met Office,2020-06-11,11 SERVICES,SUPERCOMPUTING,HOGAN LOVELLS INTERNATIONAL LLP,443350,31889.85,GB123371543
BEIS,Met Office,2020-06-11,08 SOFTWARE LICENCES,TECHNOLOGY,IBM UNITED KINGDOM LTD,443009,9411.7,107328000
BEIS,Met Office,2020-06-11,06 ACCOMMODATION,OPERATIONS,INMARSAT SOLUTIONS (CANADA) INC,441029,970.85,766144223
BEIS,Met Office,2020-06-11,11 SERVICES,OPERATIONS,INMARSAT SOLUTIONS (CANADA) INC,443021,873.87,766144223
BEIS,Met Office,2020-06-11,04 CONTRACTORS,OPERATIONS,JOBSEEKERS RECRUITMENT SERVICES LTD,443354,837.13,130 1297 14
BEIS,Met Office,2020-06-11,04 CONTRACTORS,GOVERNMENT SERVICES,JOBSEEKERS RECRUITMENT SERVICES LTD,443356,663.78,130 1297 14
BEIS,Met Office,2020-06-11,04 CONTRACTORS,GOVERNMENT SERVICES,JOBSEEKERS RECRUITMENT SERVICES LTD,443357,408.14,130 1297 14
BEIS,Met Office,2020-06-11,04 CONTRACTORS,GOVERNMENT SERVICES,JOBSEEKERS RECRUITMENT SERVICES LTD,443358,888.15,130 1297 14
BEIS,Met Office,2020-06-11,04 CONTRACTORS,GOVERNMENT SERVICES,JOBSEEKERS RECRUITMENT SERVICES LTD,443359,1039.88,130 1297 14
BEIS,Met Office,2020-06-11,04 CONTRACTORS,GOVERNMENT SERVICES,JOBSEEKERS RECRUITMENT SERVICES LTD,443360,663.78,130 1297 14
BEIS,Met Office,2020-06-11,04 CONTRACTORS,GOVERNMENT SERVICES,JOBSEEKERS RECRUITMENT SERVICES LTD,443361,848.04,130 1297 14
BEIS,Met Office,2020-06-11,11 SERVICES,CORPORATE,Landmark Information Group Ltd,443286,33250,634509735
BEIS,Met Office,2020-06-11,11 SERVICES,CORPORATE,Landmark Information Group Ltd,443287,65087.85,634509735
BEIS,Met Office,2020-06-11,PLANT AND EQUIPMENT,OPERATIONS,LEMO (UK) LTD,443058,4013.76,193269240
BEIS,Met Office,2020-06-11,PLANT AND EQUIPMENT,OPERATIONS,LEMO (UK) LTD,443058,1616.5,193269240
BEIS,Met Office,2020-06-11,PLANT AND EQUIPMENT,OPERATIONS,LEMO (UK) LTD,443058,2114.32,193269240
BEIS,Met Office,2020-06-11,PLANT AND EQUIPMENT,OPERATIONS,LEMO (UK) LTD,443058,4015.68,193269240
BEIS,Met Office,2020-06-11,PLANT AND EQUIPMENT,OPERATIONS,LEMO (UK) LTD,443058,4013.76,193269240
BEIS,Met Office,2020-06-11,PLANT AND EQUIPMENT,OPERATIONS,LEMO (UK) LTD,443058,2080,193269240
BEIS,Met Office,2020-06-11,PLANT AND EQUIPMENT,OPERATIONS,LEMO (UK) LTD,443058,2055.28,193269240
BEIS,Met Office,2020-06-11,PLANT AND EQUIPMENT,OPERATIONS,LEMO (UK) LTD,443058,3083.04,193269240
BEIS,Met Office,2020-06-11,PLANT AND EQUIPMENT,OPERATIONS,LEMO (UK) LTD,443058,1977.08,193269240
BEIS,Met Office,2020-06-11,PLANT AND EQUIPMENT,OPERATIONS,LEMO (UK) LTD,443058,2760.96,193269240
BEIS,Met Office,2020-06-11,07 EQUIPMENT,OPERATIONS,LEMO (UK) LTD,443058,250.86,193269240
BEIS,Met Office,2020-06-11,07 EQUIPMENT,OPERATIONS,LEMO (UK) LTD,443058,2133.3,193269240
BEIS,Met Office,2020-06-11,07 EQUIPMENT,OPERATIONS,LEMO (UK) LTD,443058,193.98,193269240
BEIS,Met Office,2020-06-11,07 EQUIPMENT,OPERATIONS,LEMO (UK) LTD,443058,2105.42,193269240
BEIS,Met Office,2020-06-11,07 EQUIPMENT,OPERATIONS,LEMO (UK) LTD,443058,988.25,193269240
BEIS,Met Office,2020-06-11,07 EQUIPMENT,OPERATIONS,LEMO (UK) LTD,443058,1035,193269240
BEIS,Met Office,2020-06-11,07 EQUIPMENT,OPERATIONS,LEMO (UK) LTD,443058,166.92,193269240
BEIS,Met Office,2020-06-11,07 EQUIPMENT,OPERATIONS,LEMO (UK) LTD,443058,4736.28,193269240
BEIS,Met Office,2020-06-11,07 EQUIPMENT,OPERATIONS,LEMO (UK) LTD,443058,1521.52,193269240
BEIS,Met Office,2020-06-11,07 EQUIPMENT,OPERATIONS,LEMO (UK) LTD,443058,250.98,193269240
BEIS,Met Office,2020-06-11,07 EQUIPMENT,OPERATIONS,LEMO (UK) LTD,443058,1534.68,193269240
BEIS,Met Office,2020-06-11,07 EQUIPMENT,OPERATIONS,LEMO (UK) LTD,443058,2770.02,193269240
BEIS,Met Office,2020-06-11,07 EQUIPMENT,OPERATIONS,LEMO (UK) LTD,443058,1353.6,193269240
BEIS,Met Office,2020-06-11,07 EQUIPMENT,OPERATIONS,LEMO (UK) LTD,443058,1427.4,193269240
BEIS,Met Office,2020-06-11,07 EQUIPMENT,OPERATIONS,LEMO (UK) LTD,443058,1905.6,193269240
BEIS,Met Office,2020-06-11,07 EQUIPMENT,OPERATIONS,LEMO (UK) LTD,443058,1187.68,193269240
BEIS,Met Office,2020-06-11,07 EQUIPMENT,OPERATIONS,LEMO (UK) LTD,443058,503.49,193269240
BEIS,Met Office,2020-06-11,07 EQUIPMENT,OPERATIONS,LEMO (UK) LTD,443058,23.6,193269240
BEIS,Met Office,2020-06-11,07 EQUIPMENT,OPERATIONS,LEMO (UK) LTD,443058,275.8,193269240
BEIS,Met Office,2020-06-11,07 EQUIPMENT,OPERATIONS,LEMO (UK) LTD,443058,700,193269240
BEIS,Met Office,2020-06-11,07 EQUIPMENT,OPERATIONS,LEMO (UK) LTD,443058,250.86,193269240
BEIS,Met Office,2020-06-11,07 EQUIPMENT,OPERATIONS,LEMO (UK) LTD,443058,312,193269240
BEIS,Met Office,2020-06-11,07 EQUIPMENT,OPERATIONS,LEMO (UK) LTD,443058,172.56,193269240
BEIS,Met Office,2020-06-11,07 EQUIPMENT,OPERATIONS,LEMO (UK) LTD,443058,2180.2,193269240
BEIS,Met Office,2020-06-11,07 EQUIPMENT,OPERATIONS,LEMO (UK) LTD,443288,723.4,193269240
BEIS,Met Office,2020-06-11,07 EQUIPMENT,OPERATIONS,LEMO (UK) LTD,443288,2262.28,193269240
BEIS,Met Office,2020-06-11,11 SERVICES,CORPORATE,MERKLE UK THREE LTD T/A MERKLE PERISCOPIX,443268,8213.33,843316243
BEIS,Met Office,2020-06-11,06 ACCOMMODATION,CHIEF FINANCIAL OFFICER,Mid Sussex District Council,443027,4990,-
BEIS,Met Office,2020-06-11,11 SERVICES,CHIEF FINANCIAL OFFICER,MITIE SECURITY LTD,442838,20526.35,416706654
BEIS,Met Office,2020-06-11,11 SERVICES,CHIEF FINANCIAL OFFICER,MITIE SECURITY LTD,442840,10263.36,416706654
BEIS,Met Office,2020-06-11,11 SERVICES,CHIEF FINANCIAL OFFICER,MITIE SECURITY LTD,443035,240,416706654
BEIS,Met Office,2020-06-11,11 SERVICES,CHIEF FINANCIAL OFFICER,MITIE SECURITY LTD,443290,58.4,416706654
BEIS,Met Office,2020-06-11,11 SERVICES,CHIEF FINANCIAL OFFICER,MITIE SECURITY LTD,443291,1466.04,416706654
BEIS,Met Office,2020-06-11,11 SERVICES,CHIEF FINANCIAL OFFICER,MITIE SECURITY LTD,443292,824.9,416706654
BEIS,Met Office,2020-06-11,11 SERVICES,CHIEF FINANCIAL OFFICER,MITIE SECURITY LTD,443293,38.58,416706654
BEIS,Met Office,2020-06-11,11 SERVICES,CHIEF FINANCIAL OFFICER,National Oceanography Centre,442937,42.07,GB 338 5487 64
BEIS,Met Office,2020-06-11,06 ACCOMMODATION,CHIEF FINANCIAL OFFICER,National Oceanography Centre,443324,17292.95,GB 338 5487 64
BEIS,Met Office,2020-06-11,11 SERVICES,GOVERNMENT SERVICES,NEW SIGNATURE UK LTD,442521,717.87,187113309
BEIS,Met Office,2020-06-11,06 ACCOMMODATION,CHIEF FINANCIAL OFFICER,NORSCOTT VENDING SERVICES LTD,443323,29.7,751402071
BEIS,Met Office,2020-06-11,06 ACCOMMODATION,CHIEF FINANCIAL OFFICER,OCS Group UK Limited,443059,16047.81,GB238034379
BEIS,Met Office,2020-06-11,06 ACCOMMODATION,CHIEF FINANCIAL OFFICER,OCS Group UK Limited,443059,109901.7,GB238034379
BEIS,Met Office,2020-06-11,10 EQUIPMENT MAINTENANCE,TECHNOLOGY,ORACLE CORPORATION UK LTD,443353,20245.55,391313073
BEIS,Met Office,2020-06-11,04 CONTRACTORS,CORPORATE,OUTSOURCE UK LIMITED,443107,6290.28,576118722
BEIS,Met Office,2020-06-11,04 CONTRACTORS,STRATEGIC INVESTMENT,OUTSOURCE UK LIMITED,443108,9846.2,576118722
BEIS,Met Office,2020-06-11,04 CONTRACTORS,CHIEF FINANCIAL OFFICER,OUTSOURCE UK LIMITED,443109,7914.07,576118722
BEIS,Met Office,2020-06-11,04 CONTRACTORS,TECHNOLOGY,OUTSOURCE UK LIMITED,443111,10263.52,576118722
BEIS,Met Office,2020-06-11,04 CONTRACTORS,TECHNOLOGY,OUTSOURCE UK LIMITED,443121,9397.78,576118722
BEIS,Met Office,2020-06-11,04 CONTRACTORS,TECHNOLOGY,OUTSOURCE UK LIMITED,443122,1663.86,576118722
BEIS,Met Office,2020-06-11,04 CONTRACTORS,STRATEGIC INVESTMENT,OUTSOURCE UK LIMITED,443123,8067.78,576118722
BEIS,Met Office,2020-06-11,04 CONTRACTORS,CHIEF FINANCIAL OFFICER,OUTSOURCE UK LIMITED,443124,1698.48,576118722
BEIS,Met Office,2020-06-11,04 CONTRACTORS,TECHNOLOGY,OUTSOURCE UK LIMITED,443152,10263.52,576118722
BEIS,Met Office,2020-06-11,04 CONTRACTORS,CHIEF FINANCIAL OFFICER,OUTSOURCE UK LIMITED,443244,5800.99,576118722
BEIS,Met Office,2020-06-11,04 CONTRACTORS,CHIEF FINANCIAL OFFICER,OUTSOURCE UK LIMITED,443245,3130.47,576118722
BEIS,Met Office,2020-06-11,04 CONTRACTORS,TECHNOLOGY,OUTSOURCE UK LIMITED,443246,11846.1,576118722
BEIS,Met Office,2020-06-11,04 CONTRACTORS,TECHNOLOGY,OUTSOURCE UK LIMITED,443247,9249.91,576118722
BEIS,Met Office,2020-06-11,04 CONTRACTORS,CHIEF FINANCIAL OFFICER,OUTSOURCE UK LIMITED,443248,12474.22,576118722
BEIS,Met Office,2020-06-11,04 CONTRACTORS,TECHNOLOGY,OUTSOURCE UK LIMITED,443249,11912.85,576118722
BEIS,Met Office,2020-06-11,04 CONTRACTORS,CORPORATE,OUTSOURCE UK LIMITED,443250,5000,576118722
BEIS,Met Office,2020-06-11,04 CONTRACTORS,TECHNOLOGY,OUTSOURCE UK LIMITED,443251,19550,576118722
BEIS,Met Office,2020-06-11,04 CONTRACTORS,TECHNOLOGY,OUTSOURCE UK LIMITED,443252,10125,576118722
BEIS,Met Office,2020-06-11,04 CONTRACTORS,TECHNOLOGY,OUTSOURCE UK LIMITED,443253,10297.36,576118722
BEIS,Met Office,2020-06-11,04 CONTRACTORS,OPERATIONS,OUTSOURCE UK LIMITED,443254,10881.76,576118722
BEIS,Met Office,2020-06-11,04 CONTRACTORS,TECHNOLOGY,OUTSOURCE UK LIMITED,443351,9435.98,576118722
BEIS,Met Office,2020-06-11,04 CONTRACTORS,TECHNOLOGY,OUTSOURCE UK LIMITED,443367,7763.4,576118722
BEIS,Met Office,2020-06-11,FIXTURE & FITTINGS,CHIEF FINANCIAL OFFICER,POSTURITE (UK) LTD,443061,122.76,583565114
BEIS,Met Office,2020-06-11,FIXTURE & FITTINGS,CHIEF FINANCIAL OFFICER,POSTURITE (UK) LTD,443062,122.76,583565114
BEIS,Met Office,2020-06-11,FIXTURE & FITTINGS,CHIEF FINANCIAL OFFICER,POSTURITE (UK) LTD,443062,27.9,583565114
BEIS,Met Office,2020-06-11,FIXTURE & FITTINGS,CHIEF FINANCIAL OFFICER,POSTURITE (UK) LTD,443062,654.1,583565114
BEIS,Met Office,2020-06-11,13 MISCELLANEOUS,CHIEF FINANCIAL OFFICER,POSTURITE (UK) LTD,443273,170.47,583565114
BEIS,Met Office,2020-06-11,13 MISCELLANEOUS,CHIEF FINANCIAL OFFICER,POSTURITE (UK) LTD,443274,170.47,583565114
BEIS,Met Office,2020-06-11,13 MISCELLANEOUS,CHIEF FINANCIAL OFFICER,POSTURITE (UK) LTD,443275,170.47,583565114
BEIS,Met Office,2020-06-11,04 CONTRACTORS,CHIEF FINANCIAL OFFICER,QUALSERV CONSULTING LTD,443049,7350,719067718
BEIS,Met Office,2020-06-11,04 CONTRACTORS,TECHNOLOGY,QUALSERV CONSULTING LTD,443050,13648.2,719067718
BEIS,Met Office,2020-06-11,04 CONTRACTORS,TECHNOLOGY,QUALSERV CONSULTING LTD,443056,13362.54,719067718
BEIS,Met Office,2020-06-11,04 CONTRACTORS,TECHNOLOGY,QUALSERV CONSULTING LTD,443057,10745.46,719067718
BEIS,Met Office,2020-06-11,04 CONTRACTORS,STRATEGIC INVESTMENT,QUALSERV CONSULTING LTD,443091,10350,719067718
BEIS,Met Office,2020-06-11,04 CONTRACTORS,STRATEGIC INVESTMENT,QUALSERV CONSULTING LTD,443092,11393.28,719067718
BEIS,Met Office,2020-06-11,04 CONTRACTORS,STRATEGIC INVESTMENT,QUALSERV CONSULTING LTD,443093,10350,719067718
BEIS,Met Office,2020-06-11,04 CONTRACTORS,CORPORATE,QUALSERV CONSULTING LTD,443094,8775,719067718
BEIS,Met Office,2020-06-11,04 CONTRACTORS,STRATEGIC INVESTMENT,QUALSERV CONSULTING LTD,443271,10350,719067718
BEIS,Met Office,2020-06-11,04 CONTRACTORS,GOVERNMENT SERVICES,QUALSERV CONSULTING LTD,443277,1800,719067718
BEIS,Met Office,2020-06-11,04 CONTRACTORS,CORPORATE,QUINTON DAVIES LIMITED,443283,13585,291532892
BEIS,Met Office,2020-06-11,06 ACCOMMODATION,CHIEF FINANCIAL OFFICER,REDACTED PERSONAL DATA,443026,200,N/A
BEIS,Met Office,2020-06-11,06 ACCOMMODATION,CHIEF FINANCIAL OFFICER,REDACTED PERSONAL DATA,443070,1150,426523462
BEIS,Met Office,2020-06-11,06 ACCOMMODATION,CHIEF FINANCIAL OFFICER,REDACTED PERSONAL DATA,443265,950,899936427
BEIS,Met Office,2020-06-11,06 ACCOMMODATION,CHIEF FINANCIAL OFFICER,REDACTED PERSONAL DATA,443266,95,899936427
BEIS,Met Office,2020-06-11,06 ACCOMMODATION,CHIEF FINANCIAL OFFICER,REDACTED PERSONAL DATA,443270,980,426523462
BEIS,Met Office,2020-06-11,06 ACCOMMODATION,CHIEF FINANCIAL OFFICER,REDACTED PERSONAL DATA,443306,847,426523462
BEIS,Met Office,2020-06-11,11 SERVICES,GOVERNMENT SERVICES,ROWE IT LTD,442967,11838.75,924964394
BEIS,Met Office,2020-06-11,07 EQUIPMENT,GOVERNMENT SERVICES,RUNTIME COLLECTIVE LTD T/A BRANDWATCH,443105,2700,754750710
BEIS,Met Office,2020-06-11,11 SERVICES,CHIEF FINANCIAL OFFICER,Siemens Plc,443128,60.66,GB 927 317 516
BEIS,Met Office,2020-06-11,08 SOFTWARE LICENCES,TECHNOLOGY,SOFTWARE BOX LIMITED,443099,5700.16,734245248
BEIS,Met Office,2020-06-11,08 SOFTWARE LICENCES,TECHNOLOGY,SOFTWARE BOX LIMITED,443315,132,734245248
BEIS,Met Office,2020-06-11,08 SOFTWARE LICENCES,TECHNOLOGY,SOFTWARE BOX LIMITED,443315,352,734245248
BEIS,Met Office,2020-06-11,11 SERVICES,OPERATIONS,SOFTWIRE TECHNOLOGY LIMITED,443269,2520,752 1253 57
BEIS,Met Office,2020-06-11,04 CONTRACTORS,TECHNOLOGY,SOLOS CONSULTANTS LTD,443112,9360,812035476
BEIS,Met Office,2020-06-11,04 CONTRACTORS,TECHNOLOGY,SOLOS CONSULTANTS LTD,443113,1628.16,812035476
BEIS,Met Office,2020-06-11,04 CONTRACTORS,TECHNOLOGY,SOLOS CONSULTANTS LTD,443113,5617.92,812035476
BEIS,Met Office,2020-06-11,04 CONTRACTORS,STRATEGIC INVESTMENT,SOLOS CONSULTANTS LTD,443114,9282,812035476
BEIS,Met Office,2020-06-11,04 CONTRACTORS,TECHNOLOGY,SOLOS CONSULTANTS LTD,443115,10571.22,812035476
BEIS,Met Office,2020-06-11,04 CONTRACTORS,TECHNOLOGY,SOLOS CONSULTANTS LTD,443116,11886.88,812035476
BEIS,Met Office,2020-06-11,04 CONTRACTORS,CHIEF FINANCIAL OFFICER,SOLOS CONSULTANTS LTD,443117,5718.24,812035476
BEIS,Met Office,2020-06-11,04 CONTRACTORS,BUSINESS GROUP,SOLOS CONSULTANTS LTD,443118,8089.56,812035476
BEIS,Met Office,2020-06-11,04 CONTRACTORS,TECHNOLOGY,SOLOS CONSULTANTS LTD,443119,7098.84,812035476
BEIS,Met Office,2020-06-11,04 CONTRACTORS,GOVERNMENT SERVICES,SOLOS CONSULTANTS LTD,443120,7098.12,812035476
BEIS,Met Office,2020-06-11,04 CONTRACTORS,TECHNOLOGY,SOLOS CONSULTANTS LTD,443125,9073.75,812035476
BEIS,Met Office,2020-06-11,04 CONTRACTORS,TECHNOLOGY,SOLOS CONSULTANTS LTD,443126,8493.03,812035476
BEIS,Met Office,2020-06-11,04 CONTRACTORS,CORPORATE,SOLOS CONSULTANTS LTD,443127,8992.44,812035476
BEIS,Met Office,2020-06-11,04 CONTRACTORS,TECHNOLOGY,SOLOS CONSULTANTS LTD,443129,12168,812035476
BEIS,Met Office,2020-06-11,04 CONTRACTORS,TECHNOLOGY,SOLOS CONSULTANTS LTD,443130,12696.84,812035476
BEIS,Met Office,2020-06-11,04 CONTRACTORS,STRATEGIC INVESTMENT,SOLOS CONSULTANTS LTD,443131,14820,812035476
BEIS,Met Office,2020-06-11,04 CONTRACTORS,CHIEF FINANCIAL OFFICER,SOLOS CONSULTANTS LTD,443132,10760.4,812035476
BEIS,Met Office,2020-06-11,04 CONTRACTORS,TECHNOLOGY,SOLOS CONSULTANTS LTD,443133,14107.5,812035476
BEIS,Met Office,2020-06-11,04 CONTRACTORS,TECHNOLOGY,SOLOS CONSULTANTS LTD,443134,6928.09,812035476
BEIS,Met Office,2020-06-11,04 CONTRACTORS,OPERATIONS,SOLOS CONSULTANTS LTD,443135,8013.6,812035476
BEIS,Met Office,2020-06-11,04 CONTRACTORS,CORPORATE,SOLOS CONSULTANTS LTD,443136,3598.02,812035476
BEIS,Met Office,2020-06-11,04 CONTRACTORS,CORPORATE,SOLOS CONSULTANTS LTD,443136,3572.73,812035476
BEIS,Met Office,2020-06-11,04 CONTRACTORS,TECHNOLOGY,SOLOS CONSULTANTS LTD,443137,6970,812035476
BEIS,Met Office,2020-06-11,04 CONTRACTORS,TECHNOLOGY,SOLOS CONSULTANTS LTD,443138,4496.31,812035476
BEIS,Met Office,2020-06-11,04 CONTRACTORS,CORPORATE,SOLOS CONSULTANTS LTD,443139,8652.6,812035476
BEIS,Met Office,2020-06-11,04 CONTRACTORS,TECHNOLOGY,SOLOS CONSULTANTS LTD,443140,7053.84,812035476
BEIS,Met Office,2020-06-11,04 CONTRACTORS,TECHNOLOGY,SOLOS CONSULTANTS LTD,443141,11526,812035476
BEIS,Met Office,2020-06-11,04 CONTRACTORS,OPERATIONS,SOLOS CONSULTANTS LTD,443142,6292.89,812035476
BEIS,Met Office,2020-06-11,04 CONTRACTORS,STRATEGIC INVESTMENT,SOLOS CONSULTANTS LTD,443143,12585.78,812035476
BEIS,Met Office,2020-06-11,04 CONTRACTORS,TECHNOLOGY,SOLOS CONSULTANTS LTD,443144,11700,812035476
BEIS,Met Office,2020-06-11,04 CONTRACTORS,TECHNOLOGY,SOLOS CONSULTANTS LTD,443145,8089.56,812035476
BEIS,Met Office,2020-06-11,04 CONTRACTORS,CHIEF FINANCIAL OFFICER,SOLOS CONSULTANTS LTD,443146,8099.19,812035476
BEIS,Met Office,2020-06-11,04 CONTRACTORS,STRATEGIC INVESTMENT,SOLOS CONSULTANTS LTD,443147,12168,812035476
BEIS,Met Office,2020-06-11,04 CONTRACTORS,STRATEGIC INVESTMENT,SOLOS CONSULTANTS LTD,443148,7223.04,812035476
BEIS,Met Office,2020-06-11,04 CONTRACTORS,TECHNOLOGY,SOLOS CONSULTANTS LTD,443149,13104,812035476
BEIS,Met Office,2020-06-11,04 CONTRACTORS,TECHNOLOGY,SOLOS CONSULTANTS LTD,443150,10345.5,812035476
BEIS,Met Office,2020-06-11,04 CONTRACTORS,TECHNOLOGY,SOLOS CONSULTANTS LTD,443364,6494.67,812035476
BEIS,Met Office,2020-06-11,11 SERVICES,BUSINESS GROUP,SPOKE (INTERACTIVE) LTD,443309,700,840156451
BEIS,Met Office,2020-06-11,11 SERVICES,TECHNOLOGY,SSE CONTRACTING LTD,443055,10137.45,570118464
BEIS,Met Office,2020-06-11,11 SERVICES,CHIEF FINANCIAL OFFICER,SURE SOUTH ATLANTIC LTD,443267,1018.48,NOVATREG
BEIS,Met Office,2020-06-11,11 SERVICES,CORPORATE,SWANTECH LOGISTICS LTD,443063,3269,769332401
BEIS,Met Office,2020-06-11,11 SERVICES,CHIEF FINANCIAL OFFICER,TELEFONICA O2 UK LIMITED,442989,50,778603785
BEIS,Met Office,2020-06-11,06 ACCOMMODATION,CHIEF FINANCIAL OFFICER,THE CLEANING CREW COMPANY,443072,637,343579772
BEIS,Met Office,2020-06-11,11 SERVICES,STRATEGIC INVESTMENT,TORRY HARRIS BUSINESS SOLUTIONS (EUROPE) LTD,443010,4950,791095606
BEIS,Met Office,2020-06-11,11 SERVICES,GOVERNMENT SERVICES,UK CENTRE FOR ECOLOGY & HYDROLOGY (UKCEH),442820,55370,336940192
BEIS,Met Office,2020-06-11,11 SERVICES,GOVERNMENT SERVICES,UNIVERSITY OF EXETER,443321,90000,142047795
BEIS,Met Office,2020-06-11,11 SERVICES,GOVERNMENT SERVICES,UNIVERSITY OF EXETER,443355,71980,142047795
BEIS,Met Office,2020-06-11,11 SERVICES,GOVERNMENT SERVICES,UNIVERSITY OF EXETER,443355,13107.28,142047795
BEIS,Met Office,2020-06-11,06 ACCOMMODATION,CHIEF FINANCIAL OFFICER,UNIVERSITY OF OXFORD,442975,3400,125506730
BEIS,Met Office,2020-06-11,13 MISCELLANEOUS,SCIENCE,University Of Reading,443272,333.33,200012659
BEIS,Met Office,2020-06-11,11 SERVICES,OPERATIONS,VOLKSWAGEN GROUP LEASING,442457,1008.3,BG745963883
BEIS,Met Office,2020-06-11,04 CONTRACTORS,SUPERCOMPUTING,WA CONSULTANTS LTD,442974,21449.8,876328977
BEIS,Met Office,2020-06-11,04 CONTRACTORS,SCIENCE,WA CONSULTANTS LTD,442978,10627.5,876328977
BEIS,Met Office,2020-06-11,04 CONTRACTORS,TECHNOLOGY,WA CONSULTANTS LTD,442979,11700,876328977
BEIS,Met Office,2020-06-11,04 CONTRACTORS,CHIEF FINANCIAL OFFICER,WA CONSULTANTS LTD,443011,900,876328977
BEIS,Met Office,2020-06-11,04 CONTRACTORS,CORPORATE,WA CONSULTANTS LTD,443012,8764.2,876328977
BEIS,Met Office,2020-06-11,04 CONTRACTORS,TECHNOLOGY,WA CONSULTANTS LTD,443037,6750,876328977
BEIS,Met Office,2020-06-11,04 CONTRACTORS,STRATEGIC INVESTMENT,WA CONSULTANTS LTD,443039,10120,876328977
BEIS,Met Office,2020-06-11,04 CONTRACTORS,GOVERNMENT SERVICES,WA CONSULTANTS LTD,443040,2178,876328977
BEIS,Met Office,2020-06-11,04 CONTRACTORS,STRATEGIC INVESTMENT,WA CONSULTANTS LTD,443041,8056.08,876328977
BEIS,Met Office,2020-06-11,04 CONTRACTORS,CHIEF FINANCIAL OFFICER,WA CONSULTANTS LTD,443042,6512,876328977
BEIS,Met Office,2020-06-11,04 CONTRACTORS,TECHNOLOGY,WA CONSULTANTS LTD,443043,8500,876328977
BEIS,Met Office,2020-06-11,04 CONTRACTORS,CHIEF FINANCIAL OFFICER,WA CONSULTANTS LTD,443044,8075.55,876328977
BEIS,Met Office,2020-06-11,04 CONTRACTORS,TECHNOLOGY,WA CONSULTANTS LTD,443045,14214,876328977
BEIS,Met Office,2020-06-11,04 CONTRACTORS,TECHNOLOGY,WA CONSULTANTS LTD,443046,10472.94,876328977
BEIS,Met Office,2020-06-11,04 CONTRACTORS,TECHNOLOGY,WA CONSULTANTS LTD,443073,2152.2,876328977
BEIS,Met Office,2020-06-11,04 CONTRACTORS,GOVERNMENT SERVICES,WA CONSULTANTS LTD,443074,906,876328977
BEIS,Met Office,2020-06-11,04 CONTRACTORS,TECHNOLOGY,WA CONSULTANTS LTD,443075,7532.7,876328977
BEIS,Met Office,2020-06-11,04 CONTRACTORS,TECHNOLOGY,WA CONSULTANTS LTD,443076,7735,876328977
BEIS,Met Office,2020-06-11,04 CONTRACTORS,STRATEGIC INVESTMENT,WA CONSULTANTS LTD,443077,7920,876328977
BEIS,Met Office,2020-06-11,04 CONTRACTORS,OPERATIONS,WA CONSULTANTS LTD,443079,9405,876328977
BEIS,Met Office,2020-06-11,04 CONTRACTORS,TECHNOLOGY,WA CONSULTANTS LTD,443081,12600,876328977
BEIS,Met Office,2020-06-11,04 CONTRACTORS,TECHNOLOGY,WA CONSULTANTS LTD,443372,9537.5,876328977
BEIS,Met Office,2020-06-11,06 ACCOMMODATION,CHIEF FINANCIAL OFFICER,WOKINGHAM BOROUGH COUNCIL,439874,15344.25,-
BEIS,Met Office,2020-06-11,11 SERVICES,OPERATIONS,WORLDPAY LTD,443031,21.25,991280207
BEIS,Met Office,2020-06-11,11 SERVICES,CHIEF FINANCIAL OFFICER,XPEDITE SYSTEMS (UK) LTD,443310,100,599016994
BEIS,Met Office,2020-06-17,11 SERVICES,GOVERNMENT SERVICES,KENYA METEOROLOGICAL DEPARTMENT,440289,581.47,-
BEIS,Met Office,2020-06-17,11 SERVICES,GOVERNMENT SERVICES,KENYA METEOROLOGICAL DEPARTMENT,440289,6600,-
BEIS,Met Office,2020-06-17,11 SERVICES,OPERATIONS,NSSL GLOBAL LTD,9818,57.77,725151948
BEIS,Met Office,2020-06-17,11 SERVICES,OPERATIONS,NSSL GLOBAL LTD,9819,57.77,725151948
BEIS,Met Office,2020-06-17,12 INTERNATIONAL,OPERATIONS,REDACTED PERSONAL DATA,9823,2852.11,-
BEIS,Met Office,2020-06-17,10 EQUIPMENT MAINTENANCE,OPERATIONS,VAISALA OYJ,21466,23307.82,FI01244162
BEIS,Met Office,2020-06-17,STOCK,OPERATIONS,VAISALA OYJ,21472,0,FI01244162
BEIS,Met Office,2020-06-17,STOCK,OPERATIONS,VAISALA OYJ,21472,48568.49,FI01244162
BEIS,Met Office,2020-06-18,06 ACCOMMODATION,CHIEF FINANCIAL OFFICER,A & J GARDEN SERVICES LTD,442755,144,190817003
BEIS,Met Office,2020-06-18,06 ACCOMMODATION,CHIEF FINANCIAL OFFICER,A & J GARDEN SERVICES LTD,442755,330,190817003
BEIS,Met Office,2020-06-18,06 ACCOMMODATION,CHIEF FINANCIAL OFFICER,A & J GARDEN SERVICES LTD,442755,156,190817003
BEIS,Met Office,2020-06-18,06 ACCOMMODATION,CHIEF FINANCIAL OFFICER,A & J GARDEN SERVICES LTD,442755,156,190817003
BEIS,Met Office,2020-06-18,06 ACCOMMODATION,CHIEF FINANCIAL OFFICER,A & J GARDEN SERVICES LTD,442755,1000,190817003
BEIS,Met Office,2020-06-18,06 ACCOMMODATION,CHIEF FINANCIAL OFFICER,A & J GARDEN SERVICES LTD,442755,200,190817003
BEIS,Met Office,2020-06-18,06 ACCOMMODATION,CHIEF FINANCIAL OFFICER,A & J GARDEN SERVICES LTD,442755,156,190817003
BEIS,Met Office,2020-06-18,06 ACCOMMODATION,CHIEF FINANCIAL OFFICER,A & J GARDEN SERVICES LTD,442755,156,190817003
BEIS,Met Office,2020-06-18,06 ACCOMMODATION,CHIEF FINANCIAL OFFICER,A & J GARDEN SERVICES LTD,442755,156,190817003
BEIS,Met Office,2020-06-18,06 ACCOMMODATION,CHIEF FINANCIAL OFFICER,A & J GARDEN SERVICES LTD,442755,110,190817003
BEIS,Met Office,2020-06-18,06 ACCOMMODATION,CHIEF FINANCIAL OFFICER,A & J GARDEN SERVICES LTD,442755,156,190817003
BEIS,Met Office,2020-06-18,06 ACCOMMODATION,CHIEF FINANCIAL OFFICER,A & J GARDEN SERVICES LTD,442755,200,190817003
BEIS,Met Office,2020-06-18,06 ACCOMMODATION,CHIEF FINANCIAL OFFICER,REDACTED PERSONAL DATA,443518,1940,N/A
BEIS,Met Office,2020-06-18,11 SERVICES,GOVERNMENT SERVICES,ACCELERATION EMARKETING,443402,3467.71,848940776
BEIS,Met Office,2020-06-18,11 SERVICES,CHIEF FINANCIAL OFFICER,ACTIVE PEST MANAGEMENT,443430,86.1,791419116
BEIS,Met Office,2020-06-18,11 SERVICES,TECHNOLOGY,AKAMAI TECHNOLOGIES LTD,443281,4930.88,745091237
BEIS,Met Office,2020-06-18,11 SERVICES,TECHNOLOGY,AKAMAI TECHNOLOGIES LTD,443281,25887.15,745091237
BEIS,Met Office,2020-06-18,11 SERVICES,CHIEF FINANCIAL OFFICER,ALLSTAR BUSINESS SOLUTIONS LTD,443603,814.63,747880191
BEIS,Met Office,2020-06-18,11 SERVICES,CHIEF FINANCIAL OFFICER,ANVIL MOBILE LIMITED,443431,82.6,981686175
BEIS,Met Office,2020-06-18,11 SERVICES,CHIEF FINANCIAL OFFICER,ANVIL MOBILE LIMITED,443431,29.58,981686175
BEIS,Met Office,2020-06-18,11 SERVICES,CHIEF FINANCIAL OFFICER,ANVIL MOBILE LIMITED,443431,98.6,981686175
BEIS,Met Office,2020-06-18,11 SERVICES,CHIEF FINANCIAL OFFICER,ANVIL MOBILE LIMITED,443431,22.6,981686175
BEIS,Met Office,2020-06-18,11 SERVICES,CHIEF FINANCIAL OFFICER,ANVIL MOBILE LIMITED,443431,111.3,981686175
BEIS,Met Office,2020-06-18,11 SERVICES,CHIEF FINANCIAL OFFICER,ANVIL MOBILE LIMITED,443431,34.85,981686175
BEIS,Met Office,2020-06-18,11 SERVICES,OPERATIONS,AST CONNECTIONS LTD,442662,122.35,720108683
BEIS,Met Office,2020-06-18,10 EQUIPMENT MAINTENANCE,TECHNOLOGY,AXIAL SYSTEMS LTD,443317,9943.28,927444704
BEIS,Met Office,2020-06-18,11 SERVICES,TECHNOLOGY,BAE SYSTEMS APPLIED INTELLIGENCE LIMITED,441401,20752.15,GB641407169
BEIS,Met Office,2020-06-18,11 SERVICES,TECHNOLOGY,BAE SYSTEMS APPLIED INTELLIGENCE LIMITED,442573,16720,GB641407169
BEIS,Met Office,2020-06-18,11 SERVICES,TECHNOLOGY,BAE SYSTEMS APPLIED INTELLIGENCE LIMITED,442574,12978.72,GB641407169
BEIS,Met Office,2020-06-18,11 SERVICES,TECHNOLOGY,BAE SYSTEMS APPLIED INTELLIGENCE LIMITED,442648,14420.8,GB641407169
BEIS,Met Office,2020-06-18,11 SERVICES,TECHNOLOGY,BAE SYSTEMS APPLIED INTELLIGENCE LIMITED,443406,11660,GB641407169
BEIS,Met Office,2020-06-18,11 SERVICES,STRATEGIC INVESTMENT,BAE SYSTEMS APPLIED INTELLIGENCE LIMITED,443587,58939.38,GB641407169
BEIS,Met Office,2020-06-18,11 SERVICES,STRATEGIC INVESTMENT,BAE SYSTEMS APPLIED INTELLIGENCE LIMITED,443588,43530,GB641407169
BEIS,Met Office,2020-06-18,11 SERVICES,GOVERNMENT SERVICES,BBC MEDIA ACTION,443369,9402,GB333289454
BEIS,Met Office,2020-06-18,04 CONTRACTORS,STRATEGIC INVESTMENT,BJSS LIMITED,443410,16150,613295452
BEIS,Met Office,2020-06-18,11 SERVICES,TECHNOLOGY,BJSS LIMITED,443418,66225,613295452
BEIS,Met Office,2020-06-18,STOCK,OPERATIONS,BLACK BOX NETWORK SERVICES (UK) LTD,443428,0,GB834864303
BEIS,Met Office,2020-06-18,STOCK,OPERATIONS,BLACK BOX NETWORK SERVICES (UK) LTD,443428,0,GB834864303
BEIS,Met Office,2020-06-18,STOCK,OPERATIONS,BLACK BOX NETWORK SERVICES (UK) LTD,443428,5292,GB834864303
BEIS,Met Office,2020-06-18,STOCK,OPERATIONS,BLACK BOX NETWORK SERVICES (UK) LTD,443428,3024,GB834864303
BEIS,Met Office,2020-06-18,11 SERVICES,OPERATIONS,BLACK BOX NETWORK SERVICES (UK) LTD,443428,12.5,GB834864303
BEIS,Met Office,2020-06-18,11 SERVICES,CHIEF FINANCIAL OFFICER,BT CONFERENCING,443521,267.23,245719348
BEIS,Met Office,2020-06-18,06 ACCOMMODATION,CHIEF FINANCIAL OFFICER,BUSINESS SUPPORT CENTRE LTD,443417,967.12,927365208
BEIS,Met Office,2020-06-18,07 EQUIPMENT,OPERATIONS,Campbell Scientific Ltd,443285,273.6,428453933
BEIS,Met Office,2020-06-18,07 EQUIPMENT,OPERATIONS,Campbell Scientific Ltd,443285,222.3,428453933
BEIS,Met Office,2020-06-18,07 EQUIPMENT,OPERATIONS,Campbell Scientific Ltd,443285,273.6,428453933
BEIS,Met Office,2020-06-18,07 EQUIPMENT,OPERATIONS,Campbell Scientific Ltd,443285,12483,428453933
BEIS,Met Office,2020-06-18,07 EQUIPMENT,OPERATIONS,Campbell Scientific Ltd,443285,122,428453933
BEIS,Met Office,2020-06-18,13 MISCELLANEOUS,CHIEF FINANCIAL OFFICER,CANON UK LTD,443541,11812.72,523797128
BEIS,Met Office,2020-06-18,11 SERVICES,OPERATIONS,CATALYST IT,440587,8840,978169262
BEIS,Met Office,2020-06-18,11 SERVICES,GOVERNMENT SERVICES,Cgi It Uk Limited,443423,180460.25,232615194
BEIS,Met Office,2020-06-18,11 SERVICES,TECHNOLOGY,CLOUDREACH EUROPE LIMITED,443591,9693.89,978187168
BEIS,Met Office,2020-06-18,11 SERVICES,TECHNOLOGY,CLOUDREACH EUROPE LIMITED,443602,4000,978187168
BEIS,Met Office,2020-06-18,11 SERVICES,TECHNOLOGY,CLOUDREACH EUROPE LIMITED,443610,2179.39,978187168
BEIS,Met Office,2020-06-18,INFORMATION TECHNOLOGY,TECHNOLOGY,COMPUTACENTER (UK) LTD,443522,63642,490334648
BEIS,Met Office,2020-06-18,11 SERVICES,TECHNOLOGY,COMPUTACENTER (UK) LTD,443530,64132.54,490334648
BEIS,Met Office,2020-06-18,06 ACCOMMODATION,CHIEF FINANCIAL OFFICER,DEPARTMENT OF FINANCE AND PERSONNEL,443550,44410.92,888808059
BEIS,Met Office,2020-06-18,11 SERVICES,OPERATIONS,DHL GLOBAL FORWARDING (UK) LTD,443296,12251.84,745260438
BEIS,Met Office,2020-06-18,11 SERVICES,OPERATIONS,DHL GLOBAL FORWARDING (UK) LTD,443297,1640.48,745260438
BEIS,Met Office,2020-06-18,06 ACCOMMODATION,CHIEF FINANCIAL OFFICER,EDF ENERGY CUSTOMERS PLC,443520,-142447.84,523041202
BEIS,Met Office,2020-06-18,06 ACCOMMODATION,CHIEF FINANCIAL OFFICER,EDF ENERGY CUSTOMERS PLC,443526,368079.08,523041202
BEIS,Met Office,2020-06-18,06 ACCOMMODATION,CHIEF FINANCIAL OFFICER,EDF ENERGY CUSTOMERS PLC,443527,148329.44,523041202
BEIS,Met Office,2020-06-18,06 ACCOMMODATION,CHIEF FINANCIAL OFFICER,EDF ENERGY CUSTOMERS PLC,443528,118376.76,523041202
BEIS,Met Office,2020-06-18,06 ACCOMMODATION,CHIEF FINANCIAL OFFICER,EDF ENERGY CUSTOMERS PLC,443529,142452.61,523041202
BEIS,Met Office,2020-06-18,11 SERVICES,CHIEF FINANCIAL OFFICER,EXPONENTIAL-E,443414,2878.02,GB798572653
BEIS,Met Office,2020-06-18,04 CONTRACTORS,TECHNOLOGY,FDM GROUP LIMITED,443401,1080,583540529
BEIS,Met Office,2020-06-18,11 SERVICES,CHIEF FINANCIAL OFFICER,GAMMA TELECOM LTD,443407,2.18,823820344
BEIS,Met Office,2020-06-18,11 SERVICES,CHIEF FINANCIAL OFFICER,GAMMA TELECOM LTD,443407,26068.7,823820344
BEIS,Met Office,2020-06-18,11 SERVICES,CORPORATE,HAWK INCENTIVES LTD,443419,-75,238839422
BEIS,Met Office,2020-06-18,11 SERVICES,CORPORATE,HAWK INCENTIVES LTD,443420,6709.5,238839422
BEIS,Met Office,2020-06-18,04 CONTRACTORS,TECHNOLOGY,HAYS SPECIALIST RECRUITMENT LTD,443542,551.15,773695871
BEIS,Met Office,2020-06-18,04 CONTRACTORS,BUSINESS GROUP,HAYS SPECIALIST RECRUITMENT LTD,443544,915.4,773695871
BEIS,Met Office,2020-06-18,04 CONTRACTORS,GOVERNMENT SERVICES,HAYS SPECIALIST RECRUITMENT LTD,443545,183.08,773695871
BEIS,Met Office,2020-06-18,04 CONTRACTORS,CORPORATE,HAYS SPECIALIST RECRUITMENT LTD,443546,658.25,773695871
BEIS,Met Office,2020-06-18,04 CONTRACTORS,STRATEGIC INVESTMENT,HAYS SPECIALIST RECRUITMENT LTD,443547,566.25,773695871
BEIS,Met Office,2020-06-18,03 STAFF COSTS T&S,BUSINESS GROUP,HERIOT-WATT UNIVERSITY,443551,233.32,270800579
BEIS,Met Office,2020-06-18,11 SERVICES,GOVERNMENT SERVICES,Hr Wallingford Ltd,443532,20625.37,570039752
BEIS,Met Office,2020-06-18,11 SERVICES,CHIEF FINANCIAL OFFICER,INTEROUTE COMMUNICATIONS LIMITED,443594,4931.94,832 7071 39
BEIS,Met Office,2020-06-18,11 SERVICES,CHIEF FINANCIAL OFFICER,JERSEY TELECOM,443524,1231.88,NOTVATREG
BEIS,Met Office,2020-06-18,11 SERVICES,CHIEF FINANCIAL OFFICER,JERSEY TELECOM,443524,51.73,NOTVATREG
BEIS,Met Office,2020-06-18,04 CONTRACTORS,OPERATIONS,JOBSEEKERS RECRUITMENT SERVICES LTD,443595,244.64,130 1297 14
BEIS,Met Office,2020-06-18,04 CONTRACTORS,GOVERNMENT SERVICES,JOBSEEKERS RECRUITMENT SERVICES LTD,443596,663.78,130 1297 14
BEIS,Met Office,2020-06-18,04 CONTRACTORS,GOVERNMENT SERVICES,JOBSEEKERS RECRUITMENT SERVICES LTD,443597,403.65,130 1297 14
BEIS,Met Office,2020-06-18,04 CONTRACTORS,GOVERNMENT SERVICES,JOBSEEKERS RECRUITMENT SERVICES LTD,443598,802.2,130 1297 14
BEIS,Met Office,2020-06-18,04 CONTRACTORS,GOVERNMENT SERVICES,JOBSEEKERS RECRUITMENT SERVICES LTD,443599,663.78,130 1297 14
BEIS,Met Office,2020-06-18,04 CONTRACTORS,GOVERNMENT SERVICES,JOBSEEKERS RECRUITMENT SERVICES LTD,443600,429.82,130 1297 14
BEIS,Met Office,2020-06-18,04 CONTRACTORS,GOVERNMENT SERVICES,JOBSEEKERS RECRUITMENT SERVICES LTD,443601,888.15,130 1297 14
BEIS,Met Office,2020-06-18,06 ACCOMMODATION,CHIEF FINANCIAL OFFICER,LHR BUSINESS SUPPORT CENTRE LTD,443432,3062.92,927365404
BEIS,Met Office,2020-06-18,11 SERVICES,GOVERNMENT SERVICES,NCC SERVICES  LIMITED,443618,1530,732334556
BEIS,Met Office,2020-06-18,06 ACCOMMODATION,CHIEF FINANCIAL OFFICER,NORSCOTT VENDING SERVICES LTD,443531,85,751402071
BEIS,Met Office,2020-06-18,11 SERVICES,TECHNOLOGY,NTT DATA UK CONSULTING AND IT SOLUTIONS LIMIT,442386,202.5,159334590
BEIS,Met Office,2020-06-18,11 SERVICES,TECHNOLOGY,NTT DATA UK CONSULTING AND IT SOLUTIONS LIMIT,442387,1012.5,159334590
BEIS,Met Office,2020-06-18,10 EQUIPMENT MAINTENANCE,TECHNOLOGY,ORACLE CORPORATION UK LTD,443540,20245.55,391313073
BEIS,Met Office,2020-06-18,04 CONTRACTORS,TECHNOLOGY,OUTSOURCE UK LIMITED,443110,12061.44,576118722
BEIS,Met Office,2020-06-18,04 CONTRACTORS,TECHNOLOGY,OUTSOURCE UK LIMITED,443552,3804.36,576118722
BEIS,Met Office,2020-06-18,04 CONTRACTORS,TECHNOLOGY,OUTSOURCE UK LIMITED,443553,2365.6,576118722
BEIS,Met Office,2020-06-18,04 CONTRACTORS,STRATEGIC INVESTMENT,OUTSOURCE UK LIMITED,443554,10851.17,576118722
BEIS,Met Office,2020-06-18,04 CONTRACTORS,TECHNOLOGY,OUTSOURCE UK LIMITED,443555,-502.56,576118722
BEIS,Met Office,2020-06-18,04 CONTRACTORS,CHIEF FINANCIAL OFFICER,OUTSOURCE UK LIMITED,443556,9207.58,576118722
BEIS,Met Office,2020-06-18,04 CONTRACTORS,STRATEGIC INVESTMENT,OUTSOURCE UK LIMITED,443557,8500,576118722
BEIS,Met Office,2020-06-18,04 CONTRACTORS,OPERATIONS,OUTSOURCE UK LIMITED,443558,2256.4,576118722
BEIS,Met Office,2020-06-18,13 MISCELLANEOUS,CHIEF FINANCIAL OFFICER,POSTURITE (UK) LTD,443408,170.47,583565114
BEIS,Met Office,2020-06-18,13 MISCELLANEOUS,CHIEF FINANCIAL OFFICER,POSTURITE (UK) LTD,443424,204.25,583565114
BEIS,Met Office,2020-06-18,13 MISCELLANEOUS,CHIEF FINANCIAL OFFICER,POSTURITE (UK) LTD,443425,70.65,583565114
BEIS,Met Office,2020-06-18,13 MISCELLANEOUS,CHIEF FINANCIAL OFFICER,POSTURITE (UK) LTD,443426,108.47,583565114
BEIS,Met Office,2020-06-18,13 MISCELLANEOUS,CHIEF FINANCIAL OFFICER,POSTURITE (UK) LTD,443427,170.47,583565114
BEIS,Met Office,2020-06-18,13 MISCELLANEOUS,CHIEF FINANCIAL OFFICER,POSTURITE (UK) LTD,443604,108.47,583565114
BEIS,Met Office,2020-06-18,13 MISCELLANEOUS,CHIEF FINANCIAL OFFICER,POSTURITE (UK) LTD,443605,108.47,583565114
BEIS,Met Office,2020-06-18,13 MISCELLANEOUS,CHIEF FINANCIAL OFFICER,POSTURITE (UK) LTD,443606,108.47,583565114
BEIS,Met Office,2020-06-18,13 MISCELLANEOUS,CHIEF FINANCIAL OFFICER,POSTURITE (UK) LTD,443607,108.47,583565114
BEIS,Met Office,2020-06-18,06 ACCOMMODATION,CHIEF FINANCIAL OFFICER,POWER NI ENERGY LTD,443525,344.68,617518142
BEIS,Met Office,2020-06-18,04 CONTRACTORS,CORPORATE,QUINTON DAVIES LIMITED,443436,14960,291532892
BEIS,Met Office,2020-06-18,04 CONTRACTORS,CORPORATE,QUINTON DAVIES LIMITED,443437,14300,291532892
BEIS,Met Office,2020-06-18,06 ACCOMMODATION,CHIEF FINANCIAL OFFICER,REDACTED PERSONAL DATA,443399,613.36,-
BEIS,Met Office,2020-06-18,06 ACCOMMODATION,CHIEF FINANCIAL OFFICER,REDACTED PERSONAL DATA,443400,200,-
BEIS,Met Office,2020-06-18,06 ACCOMMODATION,CHIEF FINANCIAL OFFICER,REDACTED PERSONAL DATA,443434,511,426523462
BEIS,Met Office,2020-06-18,06 ACCOMMODATION,CHIEF FINANCIAL OFFICER,REDACTED PERSONAL DATA,443435,463.5,426523462
BEIS,Met Office,2020-06-18,06 ACCOMMODATION,CHIEF FINANCIAL OFFICER,RIVER RIDGE,443421,135.51,176286083
BEIS,Met Office,2020-06-18,06 ACCOMMODATION,CHIEF FINANCIAL OFFICER,SAFESTORE LTD,443422,2681.21,722887607
BEIS,Met Office,2020-06-18,11 SERVICES,GOVERNMENT SERVICES,SOCIAL SENSING LTD,443590,2758,-
BEIS,Met Office,2020-06-18,11 SERVICES,CORPORATE,SODEXO MOT SOL UK  LTD (CHILDCARE RECEIPTS),443583,421.57,733644335
BEIS,Met Office,2020-06-18,04 CONTRACTORS,TECHNOLOGY,SOLOS CONSULTANTS LTD,443438,9360,812035476
BEIS,Met Office,2020-06-18,04 CONTRACTORS,TECHNOLOGY,SOLOS CONSULTANTS LTD,443439,9607.5,812035476
BEIS,Met Office,2020-06-18,11 SERVICES,CHIEF FINANCIAL OFFICER,SURE SOUTH ATLANTIC LTD,443415,4743,-
BEIS,Met Office,2020-06-18,11 SERVICES,CHIEF FINANCIAL OFFICER,TELEFONICA O2 UK LIMITED,443394,9166.49,778603785
BEIS,Met Office,2020-06-18,11 SERVICES,GOVERNMENT SERVICES,UK ATOMIC ENERGY AUTHORITY,443429,21584.34,GB570101391
BEIS,Met Office,2020-06-18,11 SERVICES,GOVERNMENT SERVICES,UOE CONSULTING LIMITED,443405,16666.5,631074569
BEIS,Met Office,2020-06-18,06 ACCOMMODATION,CHIEF FINANCIAL OFFICER,V & M MORRIS AND SON,443440,750,-
BEIS,Met Office,2020-06-18,06 ACCOMMODATION,CHIEF FINANCIAL OFFICER,VICKERY HOLMAN,443519,4015.62,943875678
BEIS,Met Office,2020-06-18,11 SERVICES,CHIEF FINANCIAL OFFICER,Vodafone Limited,443416,4523.55,569953277
BEIS,Met Office,2020-06-18,04 CONTRACTORS,CHIEF FINANCIAL OFFICER,WA CONSULTANTS LTD,443411,13500,876328977
BEIS,Met Office,2020-06-18,04 CONTRACTORS,OPERATIONS,WA CONSULTANTS LTD,443533,10450,876328977
BEIS,Met Office,2020-06-18,04 CONTRACTORS,CHIEF FINANCIAL OFFICER,WA CONSULTANTS LTD,443534,10256.96,876328977
BEIS,Met Office,2020-06-18,04 CONTRACTORS,CHIEF FINANCIAL OFFICER,WA CONSULTANTS LTD,443535,5715,876328977
BEIS,Met Office,2020-06-18,04 CONTRACTORS,STRATEGIC INVESTMENT,WA CONSULTANTS LTD,443536,9037.8,876328977
BEIS,Met Office,2020-06-18,04 CONTRACTORS,CHIEF FINANCIAL OFFICER,WA CONSULTANTS LTD,443537,7830,876328977
BEIS,Met Office,2020-06-18,04 CONTRACTORS,CHIEF FINANCIAL OFFICER,WA CONSULTANTS LTD,443538,3750,876328977
BEIS,Met Office,2020-06-18,04 CONTRACTORS,TECHNOLOGY,WA CONSULTANTS LTD,443539,3677.58,876328977
BEIS,Met Office,2020-06-18,10 EQUIPMENT MAINTENANCE,OPERATIONS,YOUNG CALIBRATION LIMITED,442833,1440,673900720
BEIS,Met Office,2020-06-18,11 SERVICES,OPERATIONS,YOUNG CALIBRATION LIMITED,442833,10,673900720
BEIS,Met Office,2020-06-19,TRADE CREDITORS,OTHER,NATWEST COMMERCIAL CARDS DIVISION,443749,85476.46,N/A
BEIS,Met Office,2020-06-19,07 EQUIPMENT,CHIEF FINANCIAL OFFICER,NATWEST COMMERCIAL CARDS DIVISION,443750,21808.24,N/A
BEIS,Met Office,2020-06-19,06 ACCOMMODATION,CHIEF FINANCIAL OFFICER,Scottish Government,443441,450,888842551
BEIS,Met Office,2020-06-22,11 SERVICES,GOVERNMENT SERVICES,SUFFOLK COUNTY COUNCIL,443647,1364.84,104178791
BEIS,Met Office,2020-06-22,11 SERVICES,GOVERNMENT SERVICES,SUFFOLK COUNTY COUNCIL,443796,-1364.84,104178791
BEIS,Met Office,2020-06-24,11 SERVICES,GOVERNMENT SERVICES,"BASILIO SOZINHO CUBULA SERVI�OS, E.I.",9836,3820.81,N/A
BEIS,Met Office,2020-06-24,PLANT AND EQUIPMENT,OPERATIONS,COMMUNICATIONS & POWER IND. EUROPE LTD,9835,6814.01,664103850
BEIS,Met Office,2020-06-24,PLANT AND EQUIPMENT,OPERATIONS,COMMUNICATIONS & POWER IND. EUROPE LTD,9835,13628.02,664103850
BEIS,Met Office,2020-06-24,PLANT AND EQUIPMENT,OPERATIONS,COMMUNICATIONS & POWER IND. EUROPE LTD,9835,32226.26,664103850
BEIS,Met Office,2020-06-24,PLANT AND EQUIPMENT,OPERATIONS,COMMUNICATIONS & POWER IND. EUROPE LTD,9844,6844.35,664103850
BEIS,Met Office,2020-06-24,PLANT AND EQUIPMENT,OPERATIONS,COMMUNICATIONS & POWER IND. EUROPE LTD,9844,13688.7,664103850
BEIS,Met Office,2020-06-24,PLANT AND EQUIPMENT,OPERATIONS,COMMUNICATIONS & POWER IND. EUROPE LTD,9844,32369.76,664103850
BEIS,Met Office,2020-06-24,PLANT AND EQUIPMENT,OPERATIONS,COMMUNICATIONS & POWER IND. EUROPE LTD,9845,-6844.35,664103850
BEIS,Met Office,2020-06-24,PLANT AND EQUIPMENT,OPERATIONS,COMMUNICATIONS & POWER IND. EUROPE LTD,9845,-13688.7,664103850
BEIS,Met Office,2020-06-24,PLANT AND EQUIPMENT,OPERATIONS,COMMUNICATIONS & POWER IND. EUROPE LTD,9845,-32369.76,664103850
BEIS,Met Office,2020-06-24,11 SERVICES,GOVERNMENT SERVICES,"IBL SOFTWARE ENGINEERING, SPOL S.R.O.",440324,7475.08,SK2020241883
BEIS,Met Office,2020-06-24,06 ACCOMMODATION,CHIEF FINANCIAL OFFICER,JAMES & MARCIA BENJAMIN,443313,520,-
BEIS,Met Office,2020-06-24,11 SERVICES,GOVERNMENT SERVICES,Red Cross Red Crescent Climate Centre,21537,35825.35,N/A
BEIS,Met Office,2020-06-24,STOCK,OPERATIONS,VAISALA OYJ,21475,0,FI01244162
BEIS,Met Office,2020-06-24,STOCK,OPERATIONS,VAISALA OYJ,21475,4498.54,FI01244162
BEIS,Met Office,2020-06-24,STOCK,OPERATIONS,VAISALA OYJ,21476,0,FI01244162
BEIS,Met Office,2020-06-24,STOCK,OPERATIONS,VAISALA OYJ,21476,77709.58,FI01244162
BEIS,Met Office,2020-06-25,11 SERVICES,OPERATIONS,APPLIED SATELLITE TECHNOLOGY SYSTEMS LTD,443720,277.76,720108683
BEIS,Met Office,2020-06-25,11 SERVICES,OPERATIONS,APPLIED SATELLITE TECHNOLOGY SYSTEMS LTD,443721,10191.91,720108683
BEIS,Met Office,2020-06-25,12 INTERNATIONAL,OPERATIONS,APPLIED SATELLITE TECHNOLOGY SYSTEMS LTD,443722,32.81,720108683
BEIS,Met Office,2020-06-25,11 SERVICES,OPERATIONS,APPLIED SATELLITE TECHNOLOGY SYSTEMS LTD,443724,136.65,720108683
BEIS,Met Office,2020-06-25,11 SERVICES,OPERATIONS,ASPIRE EUROPE LTD,443784,2500,841124953
BEIS,Met Office,2020-06-25,11 SERVICES,OPERATIONS,AST CONNECTIONS LTD,443723,304.39,720108683
BEIS,Met Office,2020-06-25,11 SERVICES,STRATEGIC INVESTMENT,BAE SYSTEMS APPLIED INTELLIGENCE LIMITED,443613,24340.62,GB641407169
BEIS,Met Office,2020-06-25,11 SERVICES,STRATEGIC INVESTMENT,BAE SYSTEMS APPLIED INTELLIGENCE LIMITED,443613,4991.88,GB641407169
BEIS,Met Office,2020-06-25,06 ACCOMMODATION,CHIEF FINANCIAL OFFICER,BAE SYSTEMS APPLIED INTELLIGENCE LIMITED,443782,108.1,GB641407169
BEIS,Met Office,2020-06-25,06 ACCOMMODATION,CHIEF FINANCIAL OFFICER,BAE SYSTEMS APPLIED INTELLIGENCE LIMITED,443825,-108.1,GB641407169
BEIS,Met Office,2020-06-25,11 SERVICES,CHIEF FINANCIAL OFFICER,BT GLOBAL SERVICES,443642,15232.11,245719348
BEIS,Met Office,2020-06-25,11 SERVICES,CHIEF FINANCIAL OFFICER,BT PLC,443611,17901.45,245719348
BEIS,Met Office,2020-06-25,11 SERVICES,CHIEF FINANCIAL OFFICER,BT PLC,443612,17901.65,245719348
BEIS,Met Office,2020-06-25,07 EQUIPMENT,OPERATIONS,CABLE HARNESSES (UK) LTD,443646,107.68,541018288
BEIS,Met Office,2020-06-25,07 EQUIPMENT,OPERATIONS,CABLE HARNESSES (UK) LTD,443646,107.68,541018288
BEIS,Met Office,2020-06-25,07 EQUIPMENT,OPERATIONS,CABLE HARNESSES (UK) LTD,443646,64.14,541018288
BEIS,Met Office,2020-06-25,07 EQUIPMENT,OPERATIONS,CABLE HARNESSES (UK) LTD,443646,66.87,541018288
BEIS,Met Office,2020-06-25,07 EQUIPMENT,OPERATIONS,CABLE HARNESSES (UK) LTD,443646,34.29,541018288
BEIS,Met Office,2020-06-25,07 EQUIPMENT,OPERATIONS,CABLE HARNESSES (UK) LTD,443646,34.47,541018288
BEIS,Met Office,2020-06-25,07 EQUIPMENT,OPERATIONS,CABLE HARNESSES (UK) LTD,443646,14.09,541018288
BEIS,Met Office,2020-06-25,07 EQUIPMENT,OPERATIONS,CABLE HARNESSES (UK) LTD,443646,14.09,541018288
BEIS,Met Office,2020-06-25,13 MISCELLANEOUS,CHIEF FINANCIAL OFFICER,CANON UK LTD,443608,949.14,523797128
BEIS,Met Office,2020-06-25,03 STAFF COSTS T&S,OPERATIONS,CARTUS LTD,443626,137,768489458
BEIS,Met Office,2020-06-25,03 STAFF COSTS T&S,OPERATIONS,CARTUS LTD,443630,597.92,768489458
BEIS,Met Office,2020-06-25,03 STAFF COSTS T&S,OPERATIONS,CARTUS LTD,443773,330.24,768489458
BEIS,Met Office,2020-06-25,08 SOFTWARE LICENCES,TECHNOLOGY,CLEARVISION (CM) LIMITED,443732,3049.64,881364801
BEIS,Met Office,2020-06-25,11 SERVICES,TECHNOLOGY,CLOUDREACH EUROPE LIMITED,443629,7304.11,978187168
BEIS,Met Office,2020-06-25,11 SERVICES,OPERATIONS,CLOUDREACH EUROPE LIMITED,443641,7304.11,978187168
BEIS,Met Office,2020-06-25,INFORMATION TECHNOLOGY,TECHNOLOGY,COMPUTACENTER (UK) LTD,439988,350,490334648
BEIS,Met Office,2020-06-25,INFORMATION TECHNOLOGY,TECHNOLOGY,COMPUTACENTER (UK) LTD,439988,5250,490334648
BEIS,Met Office,2020-06-25,INFORMATION TECHNOLOGY,TECHNOLOGY,COMPUTACENTER (UK) LTD,440316,2534,490334648
BEIS,Met Office,2020-06-25,INFORMATION TECHNOLOGY,TECHNOLOGY,COMPUTACENTER (UK) LTD,442852,307.6,490334648
BEIS,Met Office,2020-06-25,INFORMATION TECHNOLOGY,TECHNOLOGY,COMPUTACENTER (UK) LTD,442854,7339.2,490334648
BEIS,Met Office,2020-06-25,08 SOFTWARE LICENCES,TECHNOLOGY,COMPUTACENTER (UK) LTD,443776,62807.48,490334648
BEIS,Met Office,2020-06-25,08 SOFTWARE LICENCES,TECHNOLOGY,COMPUTACENTER (UK) LTD,443776,1511.36,490334648
BEIS,Met Office,2020-06-25,08 SOFTWARE LICENCES,TECHNOLOGY,COMPUTACENTER (UK) LTD,443776,1348.09,490334648
BEIS,Met Office,2020-06-25,08 SOFTWARE LICENCES,TECHNOLOGY,COMPUTACENTER (UK) LTD,443776,1828.27,490334648
BEIS,Met Office,2020-06-25,06 ACCOMMODATION,CHIEF FINANCIAL OFFICER,COUNTRYWIDE GROUNDS MAINTENANCE LTD,443775,790.5,611731279
BEIS,Met Office,2020-06-25,11 SERVICES,CHIEF FINANCIAL OFFICER,DEPARTMENT OF FINANCE AND PERSONNEL,443078,37.66,888808059
BEIS,Met Office,2020-06-25,11 SERVICES,CHIEF FINANCIAL OFFICER,DEPARTMENT OF FINANCE AND PERSONNEL,443080,14,888808059
BEIS,Met Office,2020-06-25,03 STAFF COSTS T&S,CHIEF FINANCIAL OFFICER,ENTERPRISE RENT A CAR UK LTD,443797,412.16,215557314
BEIS,Met Office,2020-06-25,03 STAFF COSTS T&S,CHIEF FINANCIAL OFFICER,ENTERPRISE RENT A CAR UK LTD,443798,51.55,215557314
BEIS,Met Office,2020-06-25,05 CONSULTANTS,TECHNOLOGY,Ernst & Young Llp,443719,52404,773831408
BEIS,Met Office,2020-06-25,11 SERVICES,CORPORATE,Excalibur House,443814,5062.5,303694803
BEIS,Met Office,2020-06-25,06 ACCOMMODATION,CHIEF FINANCIAL OFFICER,Exeter City Council,440192,140288,142335594
BEIS,Met Office,2020-06-25,03 STAFF COSTS T&S,OPERATIONS,FALKLAND ISLAND COMPANY LTD,443729,700,N/A
BEIS,Met Office,2020-06-25,03 STAFF COSTS T&S,OPERATIONS,FALKLAND ISLAND COMPANY LTD,443730,700,N/A
BEIS,Met Office,2020-06-25,03 STAFF COSTS T&S,OPERATIONS,FALKLAND ISLAND COMPANY LTD,443731,700,N/A
BEIS,Met Office,2020-06-25,11 SERVICES,CHIEF FINANCIAL OFFICER,GAMMA BUSINESS COMMUNICATIONS LTD,443412,497.5,823820344
BEIS,Met Office,2020-06-25,04 CONTRACTORS,TECHNOLOGY,GCS IT RECRUITMENT SPECIALISTS LTD,443741,6825,896156575
BEIS,Met Office,2020-06-25,04 CONTRACTORS,TECHNOLOGY,GCS IT RECRUITMENT SPECIALISTS LTD,443742,14250,896156575
BEIS,Met Office,2020-06-25,04 CONTRACTORS,TECHNOLOGY,GCS IT RECRUITMENT SPECIALISTS LTD,443743,1820,896156575
BEIS,Met Office,2020-06-25,STOCK,OPERATIONS,GH ZEAL LTD,443289,17.5,648929087
BEIS,Met Office,2020-06-25,STOCK,OPERATIONS,GH ZEAL LTD,443289,5959.8,648929087
BEIS,Met Office,2020-06-25,10 EQUIPMENT MAINTENANCE,OPERATIONS,Goldisc Limited,443592,1700,861294416
BEIS,Met Office,2020-06-25,10 EQUIPMENT MAINTENANCE,OPERATIONS,Goldisc Limited,443592,1700,861294416
BEIS,Met Office,2020-06-25,10 EQUIPMENT MAINTENANCE,OPERATIONS,Goldisc Limited,443592,1700,861294416
BEIS,Met Office,2020-06-25,10 EQUIPMENT MAINTENANCE,OPERATIONS,Goldisc Limited,443592,1700,861294416
BEIS,Met Office,2020-06-25,10 EQUIPMENT MAINTENANCE,OPERATIONS,Goldisc Limited,443592,1700,861294416
BEIS,Met Office,2020-06-25,11 SERVICES,OPERATIONS,Goldisc Limited,443592,100,861294416
BEIS,Met Office,2020-06-25,04 CONTRACTORS,TECHNOLOGY,HAYS SPECIALIST RECRUITMENT LTD,443634,566.25,773695871
BEIS,Met Office,2020-06-25,04 CONTRACTORS,GOVERNMENT SERVICES,HAYS SPECIALIST RECRUITMENT LTD,443635,183.08,773695871
BEIS,Met Office,2020-06-25,04 CONTRACTORS,STRATEGIC INVESTMENT,HAYS SPECIALIST RECRUITMENT LTD,443636,558.7,773695871
BEIS,Met Office,2020-06-25,04 CONTRACTORS,OPERATIONS,HAYS SPECIALIST RECRUITMENT LTD,443726,362.4,773695871
BEIS,Met Office,2020-06-25,11 SERVICES,TECHNOLOGY,IBM UNITED KINGDOM LTD,443624,6062.7,107328000
BEIS,Met Office,2020-06-25,04 CONTRACTORS,GOVERNMENT SERVICES,JOBSEEKERS RECRUITMENT SERVICES LTD,443631,815.84,130 1297 14
BEIS,Met Office,2020-06-25,04 CONTRACTORS,GOVERNMENT SERVICES,JOBSEEKERS RECRUITMENT SERVICES LTD,443632,1039.88,130 1297 14
BEIS,Met Office,2020-06-25,04 CONTRACTORS,GOVERNMENT SERVICES,JOBSEEKERS RECRUITMENT SERVICES LTD,443633,625.93,130 1297 14
BEIS,Met Office,2020-06-25,04 CONTRACTORS,GOVERNMENT SERVICES,JOBSEEKERS RECRUITMENT SERVICES LTD,443638,848.04,130 1297 14
BEIS,Met Office,2020-06-25,04 CONTRACTORS,OPERATIONS,JOBSEEKERS RECRUITMENT SERVICES LTD,443802,764.5,130 1297 14
BEIS,Met Office,2020-06-25,04 CONTRACTORS,GOVERNMENT SERVICES,JOBSEEKERS RECRUITMENT SERVICES LTD,443803,876.69,130 1297 14
BEIS,Met Office,2020-06-25,04 CONTRACTORS,GOVERNMENT SERVICES,JOBSEEKERS RECRUITMENT SERVICES LTD,443804,1026.01,130 1297 14
BEIS,Met Office,2020-06-25,04 CONTRACTORS,GOVERNMENT SERVICES,JOBSEEKERS RECRUITMENT SERVICES LTD,443805,848.04,130 1297 14
BEIS,Met Office,2020-06-25,04 CONTRACTORS,GOVERNMENT SERVICES,JOBSEEKERS RECRUITMENT SERVICES LTD,443806,578.57,130 1297 14
BEIS,Met Office,2020-06-25,04 CONTRACTORS,GOVERNMENT SERVICES,JOBSEEKERS RECRUITMENT SERVICES LTD,443807,403.65,130 1297 14
BEIS,Met Office,2020-06-25,04 CONTRACTORS,GOVERNMENT SERVICES,JOBSEEKERS RECRUITMENT SERVICES LTD,443808,663.78,130 1297 14
BEIS,Met Office,2020-06-25,08 SOFTWARE LICENCES,TECHNOLOGY,KENSON NETWORK ENGINEERING LTD.,443793,16805.08,576178600
BEIS,Met Office,2020-06-25,03 STAFF COSTS T&S,CHIEF FINANCIAL OFFICER,LEASEDRIVE RENTAL MANAGEMENT LTD,443648,208,733546040
BEIS,Met Office,2020-06-25,11 SERVICES,CHIEF FINANCIAL OFFICER,Morton Fraser LLP,443744,400,269129336
BEIS,Met Office,2020-06-25,11 SERVICES,CHIEF FINANCIAL OFFICER,Morton Fraser LLP,443745,84,269129336
BEIS,Met Office,2020-06-25,11 SERVICES,BUSINESS GROUP,NATS (EN ROUTE) PLC,443627,299261,440379456004
BEIS,Met Office,2020-06-25,06 ACCOMMODATION,GOVERNMENT SERVICES,Northern Lighthouse Board,443728,474.46,268628908
BEIS,Met Office,2020-06-25,13 MISCELLANEOUS,CHIEF FINANCIAL OFFICER,POSTURITE (UK) LTD,443640,77.22,583565114
BEIS,Met Office,2020-06-25,13 MISCELLANEOUS,CHIEF FINANCIAL OFFICER,POSTURITE (UK) LTD,443778,170.47,583565114
BEIS,Met Office,2020-06-25,13 MISCELLANEOUS,CHIEF FINANCIAL OFFICER,POSTURITE (UK) LTD,443780,154.97,583565114
BEIS,Met Office,2020-06-25,13 MISCELLANEOUS,CHIEF FINANCIAL OFFICER,POSTURITE (UK) LTD,443792,39.02,583565114
BEIS,Met Office,2020-06-25,08 SOFTWARE LICENCES,GOVERNMENT SERVICES,PRESENTATION CARTOGRAPHY LTD,443740,1166.65,-
BEIS,Met Office,2020-06-25,11 SERVICES,SCIENCE,PTR ASSOCIATES LTD,441773,4781.4,532192956
BEIS,Met Office,2020-06-25,11 SERVICES,SUPERCOMPUTING,QA LTD,440689,-3390,864455303
BEIS,Met Office,2020-06-25,11 SERVICES,SUPERCOMPUTING,QA LTD,440690,4926,864455303
BEIS,Met Office,2020-06-25,11 SERVICES,SUPERCOMPUTING,QA LTD,440691,-1536,864455303
BEIS,Met Office,2020-06-25,04 CONTRACTORS,OPERATIONS,QUALSERV CONSULTING LTD,443621,6343.2,719067718
BEIS,Met Office,2020-06-25,04 CONTRACTORS,TECHNOLOGY,QUALSERV CONSULTING LTD,443774,5863.08,719067718
BEIS,Met Office,2020-06-25,06 ACCOMMODATION,CHIEF FINANCIAL OFFICER,REDACTED PERSONAL DATA,443628,777,426523462
BEIS,Met Office,2020-06-25,11 SERVICES,CORPORATE,REDACTED PERSONAL DATA,443733,540,143043312
BEIS,Met Office,2020-06-25,11 SERVICES,CORPORATE,REDACTED PERSONAL DATA,443734,990,143043312
BEIS,Met Office,2020-06-25,11 SERVICES,CORPORATE,REDACTED PERSONAL DATA,443735,75,143043312
BEIS,Met Office,2020-06-25,04 CONTRACTORS,STRATEGIC INVESTMENT,REED,443810,7600,835515525
BEIS,Met Office,2020-06-25,04 CONTRACTORS,TECHNOLOGY,REED,443810,12340.5,835515525
BEIS,Met Office,2020-06-25,04 CONTRACTORS,TECHNOLOGY,REED,443810,5844.8,835515525
BEIS,Met Office,2020-06-25,04 CONTRACTORS,TECHNOLOGY,REED,443810,2871,835515525
BEIS,Met Office,2020-06-25,06 ACCOMMODATION,CHIEF FINANCIAL OFFICER,ST MODWEN VENTURES LTD,443781,68.01,975081008
BEIS,Met Office,2020-06-25,06 ACCOMMODATION,CHIEF FINANCIAL OFFICER,STONE HILL PARK LTD,443783,21.04,196461180
BEIS,Met Office,2020-06-25,11 SERVICES,CHIEF FINANCIAL OFFICER,SURE SOUTH ATLANTIC LTD (ST HELENA),443747,242,30005
BEIS,Met Office,2020-06-25,06 ACCOMMODATION,CHIEF FINANCIAL OFFICER,TULLY FARM HOLDINGS T/A CONTRACT SERVICES,443710,55,872632707
BEIS,Met Office,2020-06-25,06 ACCOMMODATION,CHIEF FINANCIAL OFFICER,TULLY FARM HOLDINGS T/A CONTRACT SERVICES,443711,83.45,872632707
BEIS,Met Office,2020-06-25,06 ACCOMMODATION,CHIEF FINANCIAL OFFICER,TULLY FARM HOLDINGS T/A CONTRACT SERVICES,443712,89.6,872632707
BEIS,Met Office,2020-06-25,06 ACCOMMODATION,CHIEF FINANCIAL OFFICER,TULLY FARM HOLDINGS T/A CONTRACT SERVICES,443713,91.7,872632707
BEIS,Met Office,2020-06-25,06 ACCOMMODATION,CHIEF FINANCIAL OFFICER,TULLY FARM HOLDINGS T/A CONTRACT SERVICES,443714,96.3,872632707
BEIS,Met Office,2020-06-25,06 ACCOMMODATION,CHIEF FINANCIAL OFFICER,TULLY FARM HOLDINGS T/A CONTRACT SERVICES,443715,69,872632707
BEIS,Met Office,2020-06-25,06 ACCOMMODATION,CHIEF FINANCIAL OFFICER,TULLY FARM HOLDINGS T/A CONTRACT SERVICES,443772,165,872632707
BEIS,Met Office,2020-06-25,11 SERVICES,GOVERNMENT SERVICES,UK CENTRE FOR ECOLOGY & HYDROLOGY (UKCEH),442821,180000,336940192
BEIS,Met Office,2020-06-25,11 SERVICES,GOVERNMENT SERVICES,ULTRA ELECTRONICS LTD NUCLEAR CONTROL SYSTEMS,440280,7506.28,123340754
BEIS,Met Office,2020-06-25,06 ACCOMMODATION,CHIEF FINANCIAL OFFICER,UNDER ONE ROOF (EAST ANGLIA) LIMITED,443314,345,157127804
BEIS,Met Office,2020-06-25,11 SERVICES,GOVERNMENT SERVICES,University Of Leeds,439863,108925,613451470
BEIS,Met Office,2020-06-25,11 SERVICES,GOVERNMENT SERVICES,UNIVERSITY OF SUSSEX,443746,15328.01,692712320
BEIS,Met Office,2020-06-25,04 CONTRACTORS,STRATEGIC INVESTMENT,WA CONSULTANTS LTD,443609,6326.46,876328977
BEIS,Met Office,2020-06-25,04 CONTRACTORS,TECHNOLOGY,WA CONSULTANTS LTD,443625,9000,876328977
BEIS,Met Office,2020-06-25,04 CONTRACTORS,TECHNOLOGY,WA CONSULTANTS LTD,443736,12375.15,876328977
BEIS,Met Office,2020-06-26,11 SERVICES,GOVERNMENT SERVICES,DBS FINANCE RECEIPTS CTS,443777,12204.27,888805068
BEIS,Met Office,2020-06-26,06 ACCOMMODATION,CHIEF FINANCIAL OFFICER,Scottish Government,443593,31440.85,888842551
